Workbook

Sheet Fragen
J8: Version 5 vom 26.02.2019
D10: Frage 1 | E10: Meinen Arbeitsplatz stelle ich mir
A11: 1 | D11: flexibel und unterwegs vor | E11: =IF($B11=1,1,"") ->  | F11: =IF($B11=2,2,"") ->  | G11: =IF($B11=3,3,"") ->  | H11: =IF($B11=4,4,"") ->  | I11: =IF($B11=5,5,"") ->  | J11: an einem Ort vor
A12: 2
A13: 3 | D13: Frage 2 | E13: Am liebsten arbeite ich
A14: 4 | D14: draußen an der frischen Luft | E14: =IF($B14=1,1,"") ->  | F14: =IF($B14=2,2,"") ->  | G14: =IF($B14=3,3,"") ->  | H14: =IF($B14=4,4,"") ->  | I14: =IF($B14=5,5,"") ->  | J14: in temperierter Umgebung
A15: 5
D16: Frage 3 | E16: Andere zu motivieren fällt mir
D17: in der Regel leicht | E17: =IF($B17=1,1,"") ->  | F17: =IF($B17=2,2,"") ->  | G17: =IF($B17=3,3,"") ->  | H17: =IF($B17=4,4,"") ->  | I17: =IF($B17=5,5,"") ->  | J17: wirklich schwer
A19: 1 | D19: Frage 4 | E19: Anweisungen im Beruf
A20: 2 | D20: möchte ich selbst geben | E20: =IF($B20=1,1,"") ->  | F20: =IF($B20=2,2,"") ->  | G20: =IF($B20=3,3,"") ->  | H20: =IF($B20=4,4,"") ->  | I20: =IF($B20=5,5,"") ->  | J20: hätte ich gerne von Anderen
A21: 3
A22: 4 | D22: Frage 5 | E22: Meine Arbeitsweise passt mehr zu
A23: 5 | D23: gemeinsamer Teamarbeit | E23: =IF($B23=1,1,"") ->  | F23: =IF($B23=2,2,"") ->  | G23: =IF($B23=3,3,"") ->  | H23: =IF($B23=4,4,"") ->  | I23: =IF($B23=5,5,"") ->  | J23: Einzelarbeit
A24: 3
A25: 4 | D25: Frage 6 | E25: Bei der Umsetzung von Projekten
A26: 5 | D26: plane ich Lösungen | E26: =IF($B26=1,1,"") ->  | F26: =IF($B26=2,2,"") ->  | G26: =IF($B26=3,3,"") ->  | H26: =IF($B26=4,4,"") ->  | I26: =IF($B26=5,5,"") ->  | J26: realisiere ich Lösungen
A27: 3
A28: 4 | D28: Frage 7 | E28: Meine Interessenausrichtung ist überwiegend
A29: 5 | D29: technisch | E29: =IF($B29=1,1,"") ->  | F29: =IF($B29=2,2,"") ->  | G29: =IF($B29=3,3,"") ->  | H29: =IF($B29=4,4,"") ->  | I29: =IF($B29=5,5,"") ->  | J29: wirtschaftlich
A30: 3
A31: 4 | D31: Frage 8 | E31: Ich begeistere mich eher für
A32: 5 | D32: Tiefbau | E32: =IF($B32=1,1,"") ->  | F32: =IF($B32=2,2,"") ->  | G32: =IF($B32=3,3,"") ->  | H32: =IF($B32=4,4,"") ->  | I32: =IF($B32=5,5,"") ->  | J32: Hochbau oder Ausbau
A33: 3
A34: 4 | D34: Frage 9 | E34: Dinge kann ich mir gut vorstellen, wenn
A35: 5 | D35: ich Sie im Kopf durchdenke | E35: =IF($B35=1,1,"") ->  | F35: =IF($B35=2,2,"") ->  | G35: =IF($B35=3,3,"") ->  | H35: =IF($B35=4,4,"") ->  | I35: =IF($B35=5,5,"") ->  | J35: ich sie real vor Augen habe
A36: 3
A37: 4 | D37: Frage 10 | E37: Ich konzentriere mich lieber auf
A38: 5 | D38: ein Vorhaben intensiv | E38: =IF($B38=1,1,"") ->  | F38: =IF($B38=2,2,"") ->  | G38: =IF($B38=3,3,"") ->  | H38: =IF($B38=4,4,"") ->  | I38: =IF($B38=5,5,"") ->  | J38: mehrere Vorhaben gleichzeitig
A39: 3
A40: 4 | D40: Frage 11 | E40: Arbeitszeiten stelle ich mir
A41: 5 | D41: eher flexibel und individuell vor | E41: =IF($B41=1,1,"") ->  | F41: =IF($B41=2,2,"") ->  | G41: =IF($B41=3,3,"") ->  | H41: =IF($B41=4,4,"") ->  | I41: =IF($B41=5,5,"") ->  | J41: eher geregelt und fest vor
A42: 3
A43: 4 | D43: Frage 12 | E43: Ich analysiere Probleme eher
A44: 5 | D44: im Gesamtkontext | E44: =IF($B44=1,1,"") ->  | F44: =IF($B44=2,2,"") ->  | G44: =IF($B44=3,3,"") ->  | H44: =IF($B44=4,4,"") ->  | I44: =IF($B44=5,5,"") ->  | J44: in Einzelheiten und Details
A45: 3
A46: 4 | D46: Frage 13 | E46: Lösungsansätze für plötzliche Probleme
A47: 5 | D47: plane ich bestmöglich im Vorfeld | E47: =IF($B47=1,1,"") ->  | F47: =IF($B47=2,2,"") ->  | G47: =IF($B47=3,3,"") ->  | H47: =IF($B47=4,4,"") ->  | I47: =IF($B47=5,5,"") ->  | J47: schaffe ich meist spontan
A48: 3
A49: 4 | D49: Frage 14 | E49: Für Veränderungen bin ich bereit
A50: 5 | D50: nur wenn sie notwendig sind | E50: =IF($B50=1,1,"") ->  | F50: =IF($B50=2,2,"") ->  | G50: =IF($B50=3,3,"") ->  | H50: =IF($B50=4,4,"") ->  | I50: =IF($B50=5,5,"") ->  | J50: wenn ich damit etwas verbessere
A51: 3
A52: 4 | D52: Frage 15 | E52: Bei Konflikten bin ich eher
A53: 5 | D53: kompromissbereit | E53: =IF($B53=1,1,"") ->  | F53: =IF($B53=2,2,"") ->  | G53: =IF($B53=3,3,"") ->  | H53: =IF($B53=4,4,"") ->  | I53: =IF($B53=5,5,"") ->  | J53: klar und stark positioniert

Sheet Berechnung (hidden)
A1: Positionen der Berufe | B1: Sachbearbeitung Bauordnungsamt | C1: Stadtplanung | D1: Denkmalpflege | E1: Kostenplanung | F1: Termin- und Kapazitätsplanung | G1: Ausschreibung und Vergabe | H1: Sicherheits- und Gesundheitskoordination (SiGeKo) | I1: Vermessung | J1: Allg. Genehmigungsplanung | K1: Statik und Prüfstatik | L1: Stahlbau | M1: Spannbetonbau | N1: Holzbau | O1: Glas-/Aluminiumbau | P1: Bauüberwachung | Q1: Sachverständigenwesen | R1: Prüfstatiker | S1: Brandschutzplanung | T1: Bauphysikalische Planung | U1: Energieberatung | V1: Baudynamik | W1: Geotechnik | X1: Wasserbau | Y1: Gleis- und Bahnbau | Z1: Brückenbau | AA1: Tunnelbau | AB1: Technische Gebäudeausrüstung (TGA) | AC1: Beleuchtungsplanung | AD1: Bauindustrie - Forschung + Entwicklung | AE1: Bauindustrie - Herstellung | AF1: Bauindustrie - Techn. Außendienst | AG1: Projektentwicklung | AH1: Projektsteuerung | AI1: Bauwirtschaft - Kalkulation | AJ1: Bauwirtschaft - Bauleitung (Hochbau) | AK1: Bauwirtschaft - Bauleitung (Tiefbau) | AL1: Stahlbetonbau | AM1: Straßenbau | AN1: Infrastrukturmanagement | AO1: Lehre in der Berufsbildung | AP1: Wissenschaftliche Assistenz | AQ1: Softwareentwicklung im Baubereich | AZ1: Antworten | BD1: Rang | BE1: Anzeige | BI1: Abweichung | BJ1: Übereinstimmung: 100% sind 0 Abweichung, 0% sind 18*3 (54) Abweichung
A2: Frage 1 | B2: 5 | C2: 4 | D2: 3 | E2: 4 | F2: 4 | G2: 5 | H2: 2 | I2: 2 | J2: 4 | K2: 3 | L2: 3 | M2: 4 | N2: 4 | O2: 3 | P2: 1 | Q2: 2 | R2: 3 | S2: 2 | T2: 3 | U2: 3 | V2: 2 | W2: 3 | X2: 3 | Y2: 4 | Z2: 4 | AA2: 3 | AB2: 4 | AC2: 4 | AD2: 5 | AE2: 5 | AF2: 1 | AG2: 4 | AH2: 2 | AI2: 5 | AJ2: 1 | AK2: 1 | AL2: 3 | AM2: 2 | AN2: 3 | AO2: 4 | AP2: 4 | AQ2: 5 | AZ2: =Fragen!B11 -> 0 | BD2: =SMALL(B$41:AQ$41,ROW(BD2)-1) -> 1 | BE2: =SMALL(B$43:AQ$43,ROW(BE2)-1) -> 1 | BF2: =HLOOKUP(BE2,B$43:AQ$44,2,FALSE) -> Geotechnik | BI2: =HLOOKUP(BF2,B$1:AQ$40,40,FALSE) -> 32.96024134 | BJ2: =(1-BI2/$BA$41)*100 -> 27.52805334
A3: Frage 2 | B3: 5 | C3: 4 | D3: 2 | E3: 5 | F3: 5 | G3: 5 | H3: 3 | I3: 3 | J3: 5 | K3: 4 | L3: 4 | M3: 4 | N3: 4 | O3: 3 | P3: 2 | Q3: 3 | R3: 4 | S3: 4 | T3: 4 | U3: 4 | V3: 3 | W3: 2 | X3: 2 | Y3: 3 | Z3: 4 | AA3: 3 | AB3: 4 | AC3: 5 | AD3: 5 | AE3: 4 | AF3: 3 | AG3: 4 | AH3: 3 | AI3: 5 | AJ3: 3 | AK3: 2 | AL3: 4 | AM3: 3 | AN3: 4 | AO3: 5 | AP3: 5 | AQ3: 5 | AZ3: =Fragen!B14 -> 0 | BD3: 2 | BE3: 2 | BF3: Straßenbau | BI3: 36.39623726 | BJ3: =(1-BI3/$BA$41)*100 -> 19.9730931
A4: Frage 3 | B4: 3 | C4: 2 | D4: 3 | E4: 2 | F4: 3 | G4: 4 | H4: 1 | I4: 3 | J4: 2 | K4: 3 | L4: 2 | M4: 2 | N4: 2 | O4: 2 | P4: 4 | Q4: 2 | R4: 4 | S4: 3 | T4: 3 | U4: 2 | V4: 3 | W4: 3 | X4: 3 | Y4: 2 | Z4: 3 | AA4: 3 | AB4: 3 | AC4: 3 | AD4: 4 | AE4: 2 | AF4: 1 | AG4: 2 | AH4: 2 | AI4: 4 | AJ4: 1 | AK4: 1 | AL4: 4 | AM4: 3 | AN4: 3 | AO4: 1 | AP4: 1 | AQ4: 2 | AZ4: =Fragen!B17 -> 0 | BD4: 3 | BE4: 3 | BF4: Wasserbau | BI4: 39.21677394 | BJ4: 13.77138536
A5: Frage 4 | B5: 2 | C5: 2 | D5: 4 | E5: 2 | F5: 2 | G5: 2 | H5: 1 | I5: 2 | J5: 1 | K5: 1 | L5: 2 | M5: 2 | N5: 2 | O5: 3 | P5: 2 | Q5: 2 | R5: 1 | S5: 2 | T5: 2 | U5: 3 | V5: 3 | W5: 2 | X5: 2 | Y5: 3 | Z5: 2 | AA5: 2 | AB5: 2 | AC5: 4 | AD5: 3 | AE5: 1 | AF5: 2 | AG5: 2 | AH5: 1 | AI5: 2 | AJ5: 1 | AK5: 1 | AL5: 2 | AM5: 2 | AN5: 3 | AO5: 2 | AP5: 2 | AQ5: 4 | AZ5: =Fragen!B20 -> 0 | BD5: 4 | BE5: 4 | BF5: Tunnelbau | BI5: 39.50931549 | BJ5: 13.12815415
A6: Frage 5 | B6: 3 | C6: 3 | D6: 2 | E6: 4 | F6: 3 | G6: 3 | H6: 5 | I6: 4 | J6: 3 | K6: 4 | L6: 3 | M6: 3 | N6: 3 | O6: 3 | P6: 4 | Q6: 5 | R6: 5 | S6: 2 | T6: 3 | U6: 4 | V6: 3 | W6: 2 | X6: 3 | Y6: 2 | Z6: 2 | AA6: 3 | AB6: 3 | AC6: 4 | AD6: 2 | AE6: 2 | AF6: 4 | AG6: 2 | AH6: 1 | AI6: 4 | AJ6: 3 | AK6: 3 | AL6: 4 | AM6: 4 | AN6: 3 | AO6: 4 | AP6: 4 | AQ6: 5 | AZ6: =Fragen!B23 -> 0 | BD6: 5 | BE6: 5 | BF6: Baudynamik | BI6: 40.93159483 | BJ6: 10.00089089
BD7: 6 | BE7: 6 | BF7: Brückenbau | BI7: 41.48117624 | BJ7: 8.792488483
A8: Frage 6 | B8: 4 | C8: 1 | D8: 4 | E8: 2 | F8: 2 | G8: 1 | H8: 5 | I8: 3 | J8: 1 | K8: 1 | L8: 1 | M8: 1 | N8: 1 | O8: 2 | P8: 3 | Q8: 3 | R8: 1 | S8: 2 | T8: 1 | U8: 3 | V8: 2 | W8: 1 | X8: 1 | Y8: 1 | Z8: 1 | AA8: 1 | AB8: 1 | AC8: 1 | AD8: 1 | AE8: 5 | AF8: 5 | AG8: 3 | AH8: 5 | AI8: 1 | AJ8: 5 | AK8: 5 | AL8: 2 | AM8: 2 | AN8: 4 | AO8: 3 | AP8: 2 | AQ8: 5 | AZ8: =Fragen!B26 -> 0 | BD8: 7 | BE8: 7 | BF8: Gleis- und Bahnbau | BI8: 41.55389778 | BJ8: 8.632590638
A9: Frage 7 | B9: 2 | C9: 3 | D9: 2 | E9: 5 | F9: 4 | G9: 5 | H9: 2 | I9: 2 | J9: 1 | K9: 1 | L9: 1 | M9: 3 | N9: 3 | O9: 2 | P9: 2 | Q9: 1 | R9: 1 | S9: 2 | T9: 2 | U9: 3 | V9: 1 | W9: 2 | X9: 3 | Y9: 3 | Z9: 3 | AA9: 2 | AB9: 3 | AC9: 1 | AD9: 2 | AE9: 4 | AF9: 3 | AG9: 5 | AH9: 5 | AI9: 5 | AJ9: 4 | AK9: 4 | AL9: 1 | AM9: 2 | AN9: 3 | AO9: 2 | AP9: 2 | AQ9: 1 | AZ9: =Fragen!B29 -> 0 | BD9: 8 | BE9: 8 | BF9: Statik und Prüfstatik | BI9: 42.52613193 | BJ9: 6.49487262
A10: Frage 8 | B10: 3 | C10: 2 | D10: 4 | E10: 3 | F10: 3 | G10: 3 | H10: 3 | I10: 3 | J10: 3 | K10: 3 | L10: 4 | M10: 3 | N10: 4 | O10: 4 | P10: 3 | Q10: 3 | R10: 3 | S10: 4 | T10: 5 | U10: 4 | V10: 3 | W10: 1 | X10: 1 | Y10: 1 | Z10: 2 | AA10: 1 | AB10: 5 | AC10: 5 | AD10: 3 | AE10: 3 | AF10: 3 | AG10: 3 | AH10: 3 | AI10: 3 | AJ10: 5 | AK10: 1 | AL10: 3 | AM10: 1 | AN10: 3 | AO10: 3 | AP10: 3 | AQ10: 3 | AZ10: =Fragen!B32 -> 0 | BD10: 9 | BE10: 9 | BF10: Prüfstatiker | BI10: 42.58750017 | BJ10: 6.359938065
A11: Frage 9 | B11: 4 | C11: 3 | D11: 4 | E11: 2 | F11: 2 | G11: 4 | H11: 4 | I11: 3 | J11: 2 | K11: 1 | L11: 2 | M11: 2 | N11: 3 | O11: 3 | P11: 4 | Q11: 5 | R11: 1 | S11: 2 | T11: 3 | U11: 3 | V11: 1 | W11: 2 | X11: 3 | Y11: 3 | Z11: 2 | AA11: 1 | AB11: 3 | AC11: 3 | AD11: 4 | AE11: 5 | AF11: 2 | AG11: 3 | AH11: 3 | AI11: 2 | AJ11: 4 | AK11: 4 | AL11: 2 | AM11: 3 | AN11: 4 | AO11: 2 | AP11: 2 | AQ11: 1 | AZ11: =Fragen!B35 -> 0 | BD11: 10 | BE11: 10 | BF11: Stadtplanung | BI11: 43.67892039 | BJ11: 3.960157445
A12: Frage 10 | B12: 3 | C12: 2 | D12: 1 | E12: 4 | F12: 4 | G12: 1 | H12: 3 | I12: 3 | J12: 2 | K12: 1 | L12: 2 | M12: 2 | N12: 2 | O12: 2 | P12: 1 | Q12: 3 | R12: 1 | S12: 2 | T12: 2 | U12: 3 | V12: 2 | W12: 2 | X12: 2 | Y12: 2 | Z12: 2 | AA12: 1 | AB12: 2 | AC12: 2 | AD12: 1 | AE12: 4 | AF12: 5 | AG12: 2 | AH12: 2 | AI12: 1 | AJ12: 5 | AK12: 5 | AL12: 3 | AM12: 1 | AN12: 4 | AO12: 2 | AP12: 2 | AQ12: 2 | AZ12: =Fragen!B38 -> 0 | BD12: 11 | BE12: 11 | BF12: Bauüberwachung | BI12: 43.93121414 | BJ12: 3.40542185
BD13: 12 | BE13: 12 | BF13: Allg. Genehmigungsplanung | BI13: 44.90543662 | BJ13: 1.263331968
A14: Frage 11 | B14: 5 | C14: 5 | D14: 5 | E14: 3 | F14: 3 | G14: 4 | H14: 2 | I14: 2 | J14: 4 | K14: 3 | L14: 4 | M14: 4 | N14: 4 | O14: 4 | P14: 2 | Q14: 2 | R14: 2 | S14: 4 | T14: 4 | U14: 4 | V14: 3 | W14: 3 | X14: 4 | Y14: 4 | Z14: 4 | AA14: 3 | AB14: 4 | AC14: 4 | AD14: 2 | AE14: 3 | AF14: 1 | AG14: 3 | AH14: 3 | AI14: 4 | AJ14: 2 | AK14: 2 | AL14: 2 | AM14: 2 | AN14: 4 | AO14: 5 | AP14: 4 | AQ14: 5 | AZ14: =Fragen!B41 -> 0 | BD14: 13 | BE14: 13 | BF14: Bauwirtschaft - Bauleitung (Tiefbau) | BI14: 46.52740394 | BJ14: -2.302998991
BD15: 14 | BE15: 14 | BF15: Stahlbau | BI15: 46.75481163 | BJ15: -2.803015907
A16: Frage 12 | B16: 3 | C16: 2 | D16: 4 | E16: 4 | F16: 5 | G16: 5 | H16: 2 | I16: 4 | J16: 5 | K16: 5 | L16: 4 | M16: 4 | N16: 5 | O16: 4 | P16: 2 | Q16: 5 | R16: 5 | S16: 4 | T16: 3 | U16: 2 | V16: 3 | W16: 2 | X16: 4 | Y16: 4 | Z16: 3 | AA16: 4 | AB16: 3 | AC16: 5 | AD16: 5 | AE16: 2 | AF16: 5 | AG16: 1 | AH16: 4 | AI16: 5 | AJ16: 3 | AK16: 3 | AL16: 4 | AM16: 2 | AN16: 2 | AO16: 4 | AP16: 4 | AQ16: 5 | AZ16: =Fragen!B44 -> 0 | BD16: 15 | BE16: 15 | BF16: Bauindustrie - Techn. Außendienst | BI16: 46.90635867 | BJ16: -3.136232787
A17: Frage 13 | B17: 1 | C17: 2 | D17: 3 | E17: 4 | F17: 5 | G17: 2 | H17: 5 | I17: 3 | J17: 4 | K17: 2 | L17: 4 | M17: 4 | N17: 4 | O17: 4 | P17: 3 | Q17: 4 | R17: 1 | S17: 4 | T17: 2 | U17: 4 | V17: 2 | W17: 1 | X17: 2 | Y17: 2 | Z17: 2 | AA17: 5 | AB17: 3 | AC17: 4 | AD17: 5 | AE17: 2 | AF17: 2 | AG17: 2 | AH17: 4 | AI17: 1 | AJ17: 5 | AK17: 5 | AL17: 2 | AM17: 1 | AN17: 3 | AO17: 4 | AP17: 4 | AQ17: 5 | AZ17: =Fragen!B47 -> 0 | BD17: 16 | BE17: 16 | BF17: Projektentwicklung | BI17: 47.29069634 | BJ17: -3.981302408
A18: Frage 14 | B18: 2 | C18: 3 | D18: 2 | E18: 5 | F18: 5 | G18: 3 | H18: 4 | I18: 3 | J18: 2 | K18: 2 | L18: 3 | M18: 3 | N18: 3 | O18: 3 | P18: 4 | Q18: 3 | R18: 2 | S18: 3 | T18: 2 | U18: 3 | V18: 3 | W18: 2 | X18: 2 | Y18: 3 | Z18: 3 | AA18: 4 | AB18: 3 | AC18: 2 | AD18: 5 | AE18: 2 | AF18: 3 | AG18: 4 | AH18: 4 | AI18: 5 | AJ18: 3 | AK18: 3 | AL18: 4 | AM18: 3 | AN18: 4 | AO18: 4 | AP18: 4 | AQ18: 4 | AZ18: =Fragen!B50 -> 0 | BD18: 17 | BE18: 17 | BF18: Stahlbetonbau | BI18: 47.63416562 | BJ18: -4.736511922
A19: Frage 15 | B19: 4 | C19: 3 | D19: 4 | E19: 2 | F19: 2 | G19: 4 | H19: 5 | I19: 5 | J19: 2 | K19: 5 | L19: 3 | M19: 3 | N19: 3 | O19: 3 | P19: 4 | Q19: 5 | R19: 5 | S19: 4 | T19: 4 | U19: 2 | V19: 4 | W19: 4 | X19: 3 | Y19: 3 | Z19: 2 | AA19: 2 | AB19: 4 | AC19: 4 | AD19: 1 | AE19: 2 | AF19: 3 | AG19: 3 | AH19: 5 | AI19: 3 | AJ19: 4 | AK19: 4 | AL19: 4 | AM19: 4 | AN19: 2 | AO19: 3 | AP19: 3 | AQ19: 2 | AZ19: =Fragen!B53 -> 0 | BD19: 18 | BE19: 18 | BF19: Spannbetonbau | BI19: 47.9120053 | BJ19: -5.347417099
BD20: 19 | BE20: 19 | BF20: Vermessung | BI20: 48.62134799 | BJ20: -6.907097608
A21: Diff. F1 | B21: =ABS($AZ2-B2)^$AZ21 -> 5.418991934 | C21: 4.28709385 | D21: 3.169401926 | E21: 4.28709385 | F21: 4.28709385 | G21: 5.418991934 | H21: 2.070529848 | I21: 2.070529848 | J21: 4.28709385 | K21: 3.169401926 | L21: 3.169401926 | M21: 4.28709385 | N21: 4.28709385 | O21: 3.169401926 | P21: 1 | Q21: 2.070529848 | R21: 3.169401926 | S21: 2.070529848 | T21: 3.169401926 | U21: 3.169401926 | V21: 2.070529848 | W21: 3.169401926 | X21: 3.169401926 | Y21: 4.28709385 | Z21: 4.28709385 | AA21: 3.169401926 | AB21: 4.28709385 | AC21: 4.28709385 | AD21: 5.418991934 | AE21: 5.418991934 | AF21: 1 | AG21: 4.28709385 | AH21: 2.070529848 | AI21: 5.418991934 | AJ21: 1 | AK21: 1 | AL21: 3.169401926 | AM21: 2.070529848 | AN21: 3.169401926 | AO21: 4.28709385 | AP21: 4.28709385 | AQ21: 5.418991934 | AS21: Abweichungsfaktor AF | AZ21: 1.05 | BA21: =4*AZ21 -> 4.2 | BD21: 20 | BE21: 20 | BF21: Brandschutzplanung | BI21: 48.88883618 | BJ21: -7.495242251
A22: Diff. F2 | B22: =ABS($AZ3-B3)^$AZ22 -> 6.365250578 | C22: 4.924577653 | D22: 2.219138944 | E22: 6.365250578 | F22: 6.365250578 | G22: 6.365250578 | H22: 3.537442937 | I22: 3.537442937 | J22: 6.365250578 | K22: 4.924577653 | L22: 4.924577653 | M22: 4.924577653 | N22: 4.924577653 | O22: 3.537442937 | P22: 2.219138944 | Q22: 3.537442937 | R22: 4.924577653 | S22: 4.924577653 | T22: 4.924577653 | U22: 4.924577653 | V22: 3.537442937 | W22: 2.219138944 | X22: 2.219138944 | Y22: 3.537442937 | Z22: 4.924577653 | AA22: 3.537442937 | AB22: 4.924577653 | AC22: 6.365250578 | AD22: 6.365250578 | AE22: 4.924577653 | AF22: 3.537442937 | AG22: 4.924577653 | AH22: 3.537442937 | AI22: 6.365250578 | AJ22: 3.537442937 | AK22: 2.219138944 | AL22: 4.924577653 | AM22: 3.537442937 | AN22: 4.924577653 | AO22: 6.365250578 | AP22: 6.365250578 | AQ22: 6.365250578 | AZ22: 1.15 | BA22: =4*AZ22 -> 4.6 | BD22: 21 | BE22: 21 | BF22: Bauphysikalische Planung | BI22: 49.35335167 | BJ22: -8.516604373
A23: Diff. F3 | B23: =ABS($AZ4-B4)^$AZ23 -> 3 | C23: 2 | D23: 3 | E23: 2 | F23: 3 | G23: 4 | H23: 1 | I23: 3 | J23: 2 | K23: 3 | L23: 2 | M23: 2 | N23: 2 | O23: 2 | P23: 4 | Q23: 2 | R23: 4 | S23: 3 | T23: 3 | U23: 2 | V23: 3 | W23: 3 | X23: 3 | Y23: 2 | Z23: 3 | AA23: 3 | AB23: 3 | AC23: 3 | AD23: 4 | AE23: 2 | AF23: 1 | AG23: 2 | AH23: 2 | AI23: 4 | AJ23: 1 | AK23: 1 | AL23: =ABS($AZ4-AL4)^$AZ23 -> 4 | AM23: 3 | AN23: 3 | AO23: 1 | AP23: 1 | AQ23: 2 | AS23: Berechnung | AZ23: 1 | BA23: 4 | BD23: 22 | BE23: 22 | BF23: Glas-/Aluminiumbau | BI23: 49.58175369 | BJ23: -9.018807588
A24: Diff. F4 | B24: =ABS($AZ5-B5)^$AZ24 -> 2 | C24: 2 | D24: 4 | E24: 2 | F24: 2 | G24: 2 | H24: 1 | I24: 2 | J24: 1 | K24: 1 | L24: 2 | M24: 2 | N24: 2 | O24: 3 | P24: 2 | Q24: 2 | R24: 1 | S24: 2 | T24: 2 | U24: 3 | V24: 3 | W24: 2 | X24: 2 | Y24: 3 | Z24: 2 | AA24: 2 | AB24: 2 | AC24: 4 | AD24: 3 | AE24: 1 | AF24: 2 | AG24: 2 | AH24: 1 | AI24: 2 | AJ24: 1 | AK24: 1 | AL24: =ABS($AZ5-AL5)^$AZ24 -> 2 | AM24: 2 | AN24: 3 | AO24: 2 | AP24: 2 | AQ24: 4 | AS24: (Antwort-Vorgabe)^AF | AZ24: 1 | BA24: 4 | BD24: 23 | BE24: 23 | BF24: Wissenschaftliche Assistenz | BI24: 50.3360774 | BJ24: -10.67739093
A25: Diff. F5 | B25: =ABS($AZ6-B6)^$AZ25 -> 3.169401926 | C25: 3.169401926 | D25: 2.070529848 | E25: 4.28709385 | F25: 3.169401926 | G25: 3.169401926 | H25: 5.418991934 | I25: 4.28709385 | J25: 3.169401926 | K25: 4.28709385 | L25: 3.169401926 | M25: 3.169401926 | N25: 3.169401926 | O25: 3.169401926 | P25: 4.28709385 | Q25: 5.418991934 | R25: 5.418991934 | S25: 2.070529848 | T25: 3.169401926 | U25: 4.28709385 | V25: 3.169401926 | W25: 2.070529848 | X25: 3.169401926 | Y25: 2.070529848 | Z25: 2.070529848 | AA25: 3.169401926 | AB25: 3.169401926 | AC25: 4.28709385 | AD25: 2.070529848 | AE25: 2.070529848 | AF25: 4.28709385 | AG25: 2.070529848 | AH25: 1 | AI25: 4.28709385 | AJ25: 3.169401926 | AK25: 3.169401926 | AL25: =ABS($AZ6-AL6)^$AZ25 -> 4.28709385 | AM25: 4.28709385 | AN25: 3.169401926 | AO25: 4.28709385 | AP25: 4.28709385 | AQ25: 5.418991934 | AS25: zur Gewichtung bestimmter | AZ25: 1.05 | BA25: 4.2 | BD25: 24 | BE25: 24 | BF25: Bauindustrie - Herstellung | BI25: 50.51157506 | BJ25: -11.06326969
A26: Diff. F6 | B26: =ABS($AZ7-B7)^$AZ26 -> 0 | C26: 0 | D26: 0 | E26: 0 | F26: 0 | G26: 0 | H26: 0 | I26: 0 | J26: 0 | K26: 0 | L26: 0 | M26: 0 | N26: 0 | O26: 0 | P26: 0 | Q26: 0 | R26: 0 | S26: 0 | T26: 0 | U26: 0 | V26: 0 | W26: 0 | X26: 0 | Y26: 0 | Z26: 0 | AA26: 0 | AB26: 0 | AC26: 0 | AD26: 0 | AE26: 0 | AF26: 0 | AG26: 0 | AH26: 0 | AI26: 0 | AJ26: 0 | AK26: 0 | AL26: =ABS($AZ7-AL7)^$AZ26 -> 0 | AM26: 0 | AN26: 0 | AO26: 0 | AP26: 0 | AQ26: 0 | AS26: Fragen zur Optimierung | AZ26: 1 | BA26: 4 | BD26: 25 | BE26: 25 | BF26: Sicherheits- und Gesundheitskoordination (SiGeKo) | BI26: 51.25242609 | BJ26: -12.69222975
A27: Diff. F7 | B27: =ABS($AZ8-B8)^$AZ27 -> 4.28709385 | C27: 1 | D27: 4.28709385 | E27: 2.070529848 | F27: 2.070529848 | G27: 1 | H27: 5.418991934 | I27: 3.169401926 | J27: 1 | K27: 1 | L27: 1 | M27: 1 | N27: 1 | O27: 2.070529848 | P27: 3.169401926 | Q27: 3.169401926 | R27: 1 | S27: 2.070529848 | T27: 1 | U27: 3.169401926 | V27: 2.070529848 | W27: 1 | X27: 1 | Y27: 1 | Z27: 1 | AA27: 1 | AB27: 1 | AC27: 1 | AD27: 1 | AE27: 5.418991934 | AF27: 5.418991934 | AG27: 3.169401926 | AH27: 5.418991934 | AI27: 1 | AJ27: 5.418991934 | AK27: 5.418991934 | AL27: =ABS($AZ8-AL8)^$AZ27 -> 2.070529848 | AM27: 2.070529848 | AN27: 4.28709385 | AO27: 3.169401926 | AP27: 2.070529848 | AQ27: 5.418991934 | AS27: 1= Standard | AZ27: 1.05 | BA27: 4.2 | BD27: 26 | BE27: 26 | BF27: Denkmalpflege | BI27: 51.31061177 | BJ27: -12.82016661
A28: Diff. F8 | B28: =ABS($AZ9-B9)^$AZ28 -> 2.143546925 | C28: 3.348369522 | D28: 2.143546925 | E28: 5.873094715 | F28: 4.59479342 | G28: 5.873094715 | H28: 2.143546925 | I28: 2.143546925 | J28: 1 | K28: 1 | L28: 1 | M28: 3.348369522 | N28: 3.348369522 | O28: 2.143546925 | P28: 2.143546925 | Q28: 1 | R28: 1 | S28: 2.143546925 | T28: 2.143546925 | U28: 3.348369522 | V28: 1 | W28: 2.143546925 | X28: 3.348369522 | Y28: 3.348369522 | Z28: 3.348369522 | AA28: 2.143546925 | AB28: 3.348369522 | AC28: 1 | AD28: 2.143546925 | AE28: 4.59479342 | AF28: 3.348369522 | AG28: 5.873094715 | AH28: 5.873094715 | AI28: 5.873094715 | AJ28: 4.59479342 | AK28: 4.59479342 | AL28: =ABS($AZ9-AL9)^$AZ28 -> 1 | AM28: 2.143546925 | AN28: 3.348369522 | AO28: 2.143546925 | AP28: 2.143546925 | AQ28: 1 | AZ28: 1.1 | BA28: 4.4 | BD28: 27 | BE28: 27 | BF28: Projektsteuerung | BI28: 51.33221179 | BJ28: -12.86766004
A29: Diff. F9 | B29: =ABS($AZ10-B10)^$AZ29 -> 4.655536722 | C29: 2.639015822 | D29: 6.964404506 | E29: 4.655536722 | F29: 4.655536722 | G29: 4.655536722 | H29: 4.655536722 | I29: 4.655536722 | J29: 4.655536722 | K29: 4.655536722 | L29: 6.964404506 | M29: 4.655536722 | N29: 6.964404506 | O29: 6.964404506 | P29: 4.655536722 | Q29: 4.655536722 | R29: 4.655536722 | S29: 6.964404506 | T29: 9.518269694 | U29: 6.964404506 | V29: 4.655536722 | W29: 1 | X29: 1 | Y29: 1 | Z29: 2.639015822 | AA29: 1 | AB29: 9.518269694 | AC29: 9.518269694 | AD29: 4.655536722 | AE29: 4.655536722 | AF29: 4.655536722 | AG29: 4.655536722 | AH29: 4.655536722 | AI29: 4.655536722 | AJ29: 9.518269694 | AK29: 1 | AL29: =ABS($AZ10-AL10)^$AZ29 -> 4.655536722 | AM29: 1 | AN29: 4.655536722 | AO29: 4.655536722 | AP29: 4.655536722 | AQ29: 4.655536722 | AZ29: 1.4 | BA29: 5.6 | BD29: 28 | BE29: 28 | BF29: Sachverständigenwesen | BI29: 51.72739108 | BJ29: -13.73656789
A30: Diff. F10 | B30: =ABS($AZ11-B11)^$AZ30 -> 4 | C30: 3 | D30: 4 | E30: 2 | F30: 2 | G30: 4 | H30: 4 | I30: 3 | J30: 2 | K30: 1 | L30: 2 | M30: 2 | N30: 3 | O30: 3 | P30: 4 | Q30: 5 | R30: 1 | S30: 2 | T30: 3 | U30: 3 | V30: 1 | W30: 2 | X30: 3 | Y30: 3 | Z30: 2 | AA30: 1 | AB30: 3 | AC30: 3 | AD30: 4 | AE30: 5 | AF30: 2 | AG30: 3 | AH30: 3 | AI30: 2 | AJ30: 4 | AK30: 4 | AL30: =ABS($AZ11-AL11)^$AZ30 -> 2 | AM30: 3 | AN30: 4 | AO30: 2 | AP30: 2 | AQ30: 1 | AZ30: 1 | BA30: 4 | BD30: 29 | BE30: 29 | BF30: Bauindustrie - Forschung + Entwicklung | BI30: 52.07284794 | BJ30: -14.49614762
A31: Diff. F11 | B31: =ABS($AZ12-B12)^$AZ31 -> 3.169401926 | C31: 2.070529848 | D31: 1 | E31: 4.28709385 | F31: 4.28709385 | G31: 1 | H31: 3.169401926 | I31: 3.169401926 | J31: 2.070529848 | K31: 1 | L31: 2.070529848 | M31: 2.070529848 | N31: 2.070529848 | O31: 2.070529848 | P31: 1 | Q31: 3.169401926 | R31: 1 | S31: 2.070529848 | T31: 2.070529848 | U31: 3.169401926 | V31: 2.070529848 | W31: 2.070529848 | X31: 2.070529848 | Y31: 2.070529848 | Z31: 2.070529848 | AA31: 1 | AB31: 2.070529848 | AC31: 2.070529848 | AD31: 1 | AE31: 4.28709385 | AF31: 5.418991934 | AG31: 2.070529848 | AH31: 2.070529848 | AI31: 1 | AJ31: 5.418991934 | AK31: 5.418991934 | AL31: =ABS($AZ12-AL12)^$AZ31 -> 3.169401926 | AM31: 1 | AN31: 4.28709385 | AO31: 2.070529848 | AP31: 2.070529848 | AQ31: 2.070529848 | AZ31: 1.05 | BA31: 4.2 | BD31: 30 | BE31: 30 | BF31: Holzbau | BI31: 52.22087308 | BJ31: -14.82162067
A32: Diff. F12 | B32: =ABS($AZ13-B13)^$AZ32 -> 0 | C32: 0 | D32: 0 | E32: 0 | F32: 0 | G32: 0 | H32: 0 | I32: 0 | J32: 0 | K32: 0 | L32: 0 | M32: 0 | N32: 0 | O32: 0 | P32: 0 | Q32: 0 | R32: 0 | S32: 0 | T32: 0 | U32: 0 | V32: 0 | W32: 0 | X32: 0 | Y32: 0 | Z32: 0 | AA32: 0 | AB32: 0 | AC32: 0 | AD32: 0 | AE32: 0 | AF32: 0 | AG32: 0 | AH32: 0 | AI32: 0 | AJ32: 0 | AK32: 0 | AL32: =ABS($AZ13-AL13)^$AZ32 -> 0 | AM32: 0 | AN32: 0 | AO32: 0 | AP32: 0 | AQ32: 0 | AZ32: 1 | BA32: 4 | BD32: 31 | BE32: 31 | BF32: Energieberatung | BI32: 52.39027501 | BJ32: -15.19409632
A33: Diff. F13 | B33: =ABS($AZ14-B14)^$AZ33 -> 5 | C33: 5 | D33: 5 | E33: 3 | F33: 3 | G33: 4 | H33: 2 | I33: 2 | J33: 4 | K33: 3 | L33: 4 | M33: 4 | N33: 4 | O33: 4 | P33: 2 | Q33: 2 | R33: 2 | S33: 4 | T33: 4 | U33: 4 | V33: 3 | W33: 3 | X33: 4 | Y33: 4 | Z33: 4 | AA33: 3 | AB33: 4 | AC33: 4 | AD33: 2 | AE33: 3 | AF33: 1 | AG33: 3 | AH33: 3 | AI33: 4 | AJ33: 2 | AK33: 2 | AL33: =ABS($AZ14-AL14)^$AZ33 -> 2 | AM33: 2 | AN33: 4 | AO33: 5 | AP33: 4 | AQ33: 5 | AZ33: 1 | BA33: 4 | BD33: 32 | BE33: 32 | BF33: Lehre in der Berufsbildung | BI33: 52.43494947 | BJ33: -15.29232514
A34: Diff. F14 | B34: =ABS($AZ15-B15)^$AZ34 -> 0 | C34: 0 | D34: 0 | E34: 0 | F34: 0 | G34: 0 | H34: 0 | I34: 0 | J34: 0 | K34: 0 | L34: 0 | M34: 0 | N34: 0 | O34: 0 | P34: 0 | Q34: 0 | R34: 0 | S34: 0 | T34: 0 | U34: 0 | V34: 0 | W34: 0 | X34: 0 | Y34: 0 | Z34: 0 | AA34: 0 | AB34: 0 | AC34: 0 | AD34: 0 | AE34: 0 | AF34: 0 | AG34: 0 | AH34: 0 | AI34: 0 | AJ34: 0 | AK34: 0 | AL34: =ABS($AZ15-AL15)^$AZ34 -> 0 | AM34: 0 | AN34: 0 | AO34: 0 | AP34: 0 | AQ34: 0 | AZ34: 1 | BA34: 4 | BD34: 33 | BE34: 33 | BF34: Infrastrukturmanagement | BI34: 53.08140722 | BJ34: -16.7137362
A35: Diff. F15 | B35: =ABS($AZ16-B16)^$AZ35 -> 3 | C35: 2 | D35: 4 | E35: 4 | F35: 5 | G35: 5 | H35: 2 | I35: 4 | J35: 5 | K35: 5 | L35: 4 | M35: 4 | N35: 5 | O35: 4 | P35: 2 | Q35: 5 | R35: 5 | S35: 4 | T35: 3 | U35: 2 | V35: 3 | W35: 2 | X35: 4 | Y35: 4 | Z35: 3 | AA35: 4 | AB35: 3 | AC35: 5 | AD35: 5 | AE35: 2 | AF35: 5 | AG35: 1 | AH35: 4 | AI35: 5 | AJ35: 3 | AK35: 3 | AL35: =ABS($AZ16-AL16)^$AZ35 -> 4 | AM35: 2 | AN35: 2 | AO35: 4 | AP35: 4 | AQ35: 5 | AZ35: 1 | BA35: 4 | BD35: 34 | BE35: 34 | BF35: Sachbearbeitung Bauordnungsamt | BI35: 53.49631771 | BJ35: -17.62602839
A36: Diff. F16 | B36: =ABS($AZ17-B17)^$AZ36 -> 1 | C36: 2.070529848 | D36: 3.169401926 | E36: 4.28709385 | F36: 5.418991934 | G36: 2.070529848 | H36: 5.418991934 | I36: 3.169401926 | J36: 4.28709385 | K36: 2.070529848 | L36: 4.28709385 | M36: 4.28709385 | N36: 4.28709385 | O36: 4.28709385 | P36: 3.169401926 | Q36: 4.28709385 | R36: 1 | S36: 4.28709385 | T36: 2.070529848 | U36: 4.28709385 | V36: 2.070529848 | W36: 1 | X36: 2.070529848 | Y36: 2.070529848 | Z36: 2.070529848 | AA36: 5.418991934 | AB36: 3.169401926 | AC36: 4.28709385 | AD36: 5.418991934 | AE36: 2.070529848 | AF36: 2.070529848 | AG36: 2.070529848 | AH36: 4.28709385 | AI36: 1 | AJ36: 5.418991934 | AK36: 5.418991934 | AL36: =ABS($AZ17-AL17)^$AZ36 -> 2.070529848 | AM36: 1 | AN36: 3.169401926 | AO36: 4.28709385 | AP36: 4.28709385 | AQ36: 5.418991934 | AZ36: 1.05 | BA36: 4.2 | BD36: 35 | BE36: 35 | BF36: Technische Gebäudeausrüstung (TGA) | BI36: 53.77473827 | BJ36: -18.23821079
A37: Diff. F17 | B37: =ABS($AZ18-B18)^$AZ37 -> 2 | C37: 3 | D37: 2 | E37: 5 | F37: 5 | G37: 3 | H37: 4 | I37: 3 | J37: 2 | K37: 2 | L37: 3 | M37: 3 | N37: 3 | O37: 3 | P37: 4 | Q37: 3 | R37: 2 | S37: 3 | T37: 2 | U37: 3 | V37: 3 | W37: 2 | X37: 2 | Y37: 3 | Z37: 3 | AA37: 4 | AB37: 3 | AC37: 2 | AD37: 5 | AE37: 2 | AF37: 3 | AG37: 4 | AH37: 4 | AI37: 5 | AJ37: 3 | AK37: 3 | AL37: =ABS($AZ18-AL18)^$AZ37 -> 4 | AM37: 3 | AN37: 4 | AO37: 4 | AP37: 4 | AQ37: 4 | AZ37: 1 | BA37: 4 | BD37: 36 | BE37: 36 | BF37: Bauwirtschaft - Kalkulation | BI37: 54.76936972 | BJ37: -20.4251753
A38: Diff. F18 | B38: =ABS($AZ19-B19)^$AZ38 -> 4.28709385 | C38: 3.169401926 | D38: 4.28709385 | E38: 2.070529848 | F38: 2.070529848 | G38: 4.28709385 | H38: 5.418991934 | I38: 5.418991934 | J38: 2.070529848 | K38: 5.418991934 | L38: 3.169401926 | M38: 3.169401926 | N38: 3.169401926 | O38: 3.169401926 | P38: 4.28709385 | Q38: 5.418991934 | R38: 5.418991934 | S38: 4.28709385 | T38: 4.28709385 | U38: 2.070529848 | V38: 4.28709385 | W38: 4.28709385 | X38: 3.169401926 | Y38: 3.169401926 | Z38: 2.070529848 | AA38: 2.070529848 | AB38: 4.28709385 | AC38: 4.28709385 | AD38: 1 | AE38: 2.070529848 | AF38: 3.169401926 | AG38: 3.169401926 | AH38: 5.418991934 | AI38: 3.169401926 | AJ38: 4.28709385 | AK38: 4.28709385 | AL38: =ABS($AZ19-AL19)^$AZ38 -> 4.28709385 | AM38: 4.28709385 | AN38: 2.070529848 | AO38: 3.169401926 | AP38: 3.169401926 | AQ38: 2.070529848 | AZ38: 1.05 | BA38: 4.2 | BD38: 37 | BE38: 37 | BF38: Ausschreibung und Vergabe | BI38: 55.83989957 | BJ38: -22.77902281
BD39: 38 | BE39: 38 | BF39: Kostenplanung | BI39: 56.18331711 | BJ39: -23.53411854
A40: Summe | B40: =SUM(B21:B38) -> 53.49631771 | C40: =SUM(C21:C38) -> 43.67892039 | D40: 51.31061177 | E40: 56.18331711 | F40: 56.91922197 | G40: 55.83989957 | H40: 51.25242609 | I40: 48.62134799 | J40: 44.90543662 | K40: 42.52613193 | L40: 46.75481163 | M40: 47.9120053 | N40: 52.22087308 | O40: 49.58175369 | P40: 43.93121414 | Q40: 51.72739108 | R40: 42.58750017 | S40: 48.88883618 | T40: 49.35335167 | U40: 52.39027501 | V40: 40.93159483 | W40: 32.96024134 | X40: 39.21677394 | Y40: 41.55389778 | Z40: 41.48117624 | AA40: 39.50931549 | AB40: 53.77473827 | AC40: 58.10242552 | AD40: 52.07284794 | AE40: 50.51157506 | AF40: 46.90635867 | AG40: 47.29069634 | AH40: 51.33221179 | AI40: 54.76936972 | AJ40: 56.36397763 | AK40: 46.52740394 | AL40: =SUM(AL21:AL38) -> 47.63416562 | AM40: 36.39623726 | AN40: 53.08140722 | AO40: 52.43494947 | AP40: 50.3360774 | AQ40: 58.83781473 | AS40: theoretische max. Abweichung | BA40: =SUM(BA21:BA38) -> 75.8 | BD40: 39 | BE40: 39 | BF40: Bauwirtschaft - Bauleitung (Hochbau) | BI40: 56.36397763 | BJ40: -23.93134922
A41: Rang | B41: =_xlfn.RANK.EQ(B40,$B$40:$AQ$40,1) -> 34 | C41: 10 | D41: 26 | E41: 38 | F41: 40 | G41: 37 | H41: 25 | I41: 19 | J41: 12 | K41: 8 | L41: 14 | M41: 18 | N41: 30 | O41: 22 | P41: 11 | Q41: 28 | R41: 9 | S41: 20 | T41: 21 | U41: 31 | V41: 5 | W41: 1 | X41: 3 | Y41: 7 | Z41: 6 | AA41: 4 | AB41: 35 | AC41: 41 | AD41: 29 | AE41: 24 | AF41: 15 | AG41: 16 | AH41: 27 | AI41: 36 | AJ41: 39 | AK41: 13 | AL41: =_xlfn.RANK.EQ(AL40,$B$40:$AQ$40,1) -> 17 | AM41: 2 | AN41: 33 | AO41: 32 | AP41: 23 | AQ41: 42 | AS41: begrenztes Abweichungsniveau | BA41: =0.6*BA40 -> 45.48 | BD41: 40 | BE41: 40 | BF41: Termin- und Kapazitätsplanung | BI41: 56.91922197 | BJ41: -25.15220311
A42: Alphabet | B42: =SUMPRODUCT(($B$1:$AQ$1 < B1)+(B1="")*1000) -> 26 | C42: 31 | D42: 14 | E42: 21 | F42: 37 | G42: 1 | H42: 28 | I42: 39 | J42: 0 | K42: 34 | L42: 32 | M42: 30 | N42: 19 | O42: 17 | P42: 7 | Q42: 27 | R42: 25 | S42: 12 | T42: 6 | U42: 15 | V42: 2 | W42: 16 | X42: 40 | Y42: 18 | Z42: 13 | AA42: 38 | AB42: 36 | AC42: 11 | AD42: 3 | AE42: 4 | AF42: 5 | AG42: 23 | AH42: 24 | AI42: 10 | AJ42: 8 | AK42: 9 | AL42: =SUMPRODUCT(($B$1:$AQ$1 < AL1)+(AL1="")*1000) -> 33 | AM42: 35 | AN42: 20 | AO42: 22 | AP42: 41 | AQ42: 29 | BD42: 41 | BE42: 41 | BF42: Beleuchtungsplanung | BI42: 58.10242552 | BJ42: -27.75379402
A43: Ausgabe | B43: =SUMPRODUCT(($B$41:$AQ$41+($B42:$AQ42*10^-6)<B41+(B42*10^-6))*1)+1 -> 34 | C43: 10 | D43: 26 | E43: 38 | F43: 40 | G43: 37 | H43: 25 | I43: 19 | J43: 12 | K43: 8 | L43: 14 | M43: 18 | N43: 30 | O43: 22 | P43: 11 | Q43: 28 | R43: 9 | S43: 20 | T43: 21 | U43: 31 | V43: 5 | W43: 1 | X43: 3 | Y43: 7 | Z43: 6 | AA43: 4 | AB43: 35 | AC43: 41 | AD43: 29 | AE43: 24 | AF43: 15 | AG43: 16 | AH43: 27 | AI43: 36 | AJ43: 39 | AK43: 13 | AL43: =SUMPRODUCT(($B$41:$AQ$41+($B42:$AQ42*10^-6)<AL41+(AL42*10^-6))*1)+1 -> 17 | AM43: 2 | AN43: 33 | AO43: 32 | AP43: 23 | AQ43: 42
A44: Beruf | B44: =B1 -> Sachbearbeitung Bauordnungsamt | C44: Stadtplanung | D44: Denkmalpflege | E44: Kostenplanung | F44: Termin- und Kapazitätsplanung | G44: Ausschreibung und Vergabe | H44: Sicherheits- und Gesundheitskoordination (SiGeKo) | I44: Vermessung | J44: Allg. Genehmigungsplanung | K44: Statik und Prüfstatik | L44: Stahlbau | M44: Spannbetonbau | N44: Holzbau | O44: Glas-/Aluminiumbau | P44: Bauüberwachung | Q44: Sachverständigenwesen | R44: Prüfstatiker | S44: Brandschutzplanung | T44: Bauphysikalische Planung | U44: Energieberatung | V44: Baudynamik | W44: Geotechnik | X44: Wasserbau | Y44: Gleis- und Bahnbau | Z44: Brückenbau | AA44: Tunnelbau | AB44: Technische Gebäudeausrüstung (TGA) | AC44: Beleuchtungsplanung | AD44: Bauindustrie - Forschung + Entwicklung | AE44: Bauindustrie - Herstellung | AF44: Bauindustrie - Techn. Außendienst | AG44: Projektentwicklung | AH44: Projektsteuerung | AI44: Bauwirtschaft - Kalkulation | AJ44: Bauwirtschaft - Bauleitung (Hochbau) | AK44: Bauwirtschaft - Bauleitung (Tiefbau) | AL44: Stahlbetonbau | AM44: Straßenbau | AN44: Infrastrukturmanagement | AO44: Lehre in der Berufsbildung | AP44: Wissenschaftliche Assistenz | AQ44: Softwareentwicklung im Baubereich

Sheet Ergebnisse
B8: Die fünf Berufszweige mit der größten Übereinstimmung
B10: =Berechnung!BD2 -> 1 | C10: =Berechnung!BF2 -> Geotechnik | F10: =Berechnung!BJ2 -> 27.52805334 | G10: % | H10: =IF($F10<5,"x",$F10) -> 27.52805334 | I10: =IF($F10<10,"x",$F10) -> 27.52805334 | J10: =IF($F10<15,"x",$F10) -> 27.52805334 | K10: =IF($F10<20,"x",$F10) -> 27.52805334 | L10: =IF($F10<25,"x",$F10) -> 27.52805334 | M10: =IF($F10<30,"x",$F10) -> x | N10: =IF($F10<35,"x",$F10) -> x | O10: =IF($F10<40,"x",$F10) -> x | P10: =IF($F10<45,"x",$F10) -> x | Q10: =IF($F10<50,"x",$F10) -> x | R10: =IF($F10<55,"x",$F10) -> x | S10: =IF($F10<60,"x",$F10) -> x | T10: =IF($F10<65,"x",$F10) -> x | U10: =IF($F10<70,"x",$F10) -> x | V10: =IF($F10<75,"x",$F10) -> x | W10: =IF($F10<80,"x",$F10) -> x | X10: =IF($F10<85,"x",$F10) -> x | Y10: =IF($F10<90,"x",$F10) -> x | Z10: =IF($F10<95,"x",$F10) -> x | AA10: =IF($F10<100,"x",$F10) -> x
B12: =Berechnung!BD3 -> 2 | C12: =Berechnung!BF3 -> Straßenbau | F12: =Berechnung!BJ3 -> 19.9730931 | G12: % | H12: =IF($F12<5,"x",$F12) -> 19.9730931 | I12: =IF($F12<10,"x",$F12) -> 19.9730931 | J12: =IF($F12<15,"x",$F12) -> 19.9730931 | K12: =IF($F12<20,"x",$F12) -> x | L12: =IF($F12<25,"x",$F12) -> x | M12: =IF($F12<30,"x",$F12) -> x | N12: =IF($F12<35,"x",$F12) -> x | O12: =IF($F12<40,"x",$F12) -> x | P12: =IF($F12<45,"x",$F12) -> x | Q12: =IF($F12<50,"x",$F12) -> x | R12: =IF($F12<55,"x",$F12) -> x | S12: =IF($F12<60,"x",$F12) -> x | T12: =IF($F12<65,"x",$F12) -> x | U12: =IF($F12<70,"x",$F12) -> x | V12: =IF($F12<75,"x",$F12) -> x | W12: =IF($F12<80,"x",$F12) -> x | X12: =IF($F12<85,"x",$F12) -> x | Y12: =IF($F12<90,"x",$F12) -> x | Z12: =IF($F12<95,"x",$F12) -> x | AA12: =IF($F12<100,"x",$F12) -> x
B14: =Berechnung!BD4 -> 3 | C14: =Berechnung!BF4 -> Wasserbau | F14: =Berechnung!BJ4 -> 13.77138536 | G14: % | H14: =IF($F14<5,"x",$F14) -> 13.77138536 | I14: =IF($F14<10,"x",$F14) -> 13.77138536 | J14: =IF($F14<15,"x",$F14) -> x | K14: =IF($F14<20,"x",$F14) -> x | L14: =IF($F14<25,"x",$F14) -> x | M14: =IF($F14<30,"x",$F14) -> x | N14: =IF($F14<35,"x",$F14) -> x | O14: =IF($F14<40,"x",$F14) -> x | P14: =IF($F14<45,"x",$F14) -> x | Q14: =IF($F14<50,"x",$F14) -> x | R14: =IF($F14<55,"x",$F14) -> x | S14: =IF($F14<60,"x",$F14) -> x | T14: =IF($F14<65,"x",$F14) -> x | U14: =IF($F14<70,"x",$F14) -> x | V14: =IF($F14<75,"x",$F14) -> x | W14: =IF($F14<80,"x",$F14) -> x | X14: =IF($F14<85,"x",$F14) -> x | Y14: =IF($F14<90,"x",$F14) -> x | Z14: =IF($F14<95,"x",$F14) -> x | AA14: =IF($F14<100,"x",$F14) -> x
B16: =Berechnung!BD5 -> 4 | C16: =Berechnung!BF5 -> Tunnelbau | F16: =Berechnung!BJ5 -> 13.12815415 | G16: % | H16: =IF($F16<5,"x",$F16) -> 13.12815415 | I16: =IF($F16<10,"x",$F16) -> 13.12815415 | J16: =IF($F16<15,"x",$F16) -> x | K16: =IF($F16<20,"x",$F16) -> x | L16: =IF($F16<25,"x",$F16) -> x | M16: =IF($F16<30,"x",$F16) -> x | N16: =IF($F16<35,"x",$F16) -> x | O16: =IF($F16<40,"x",$F16) -> x | P16: =IF($F16<45,"x",$F16) -> x | Q16: =IF($F16<50,"x",$F16) -> x | R16: =IF($F16<55,"x",$F16) -> x | S16: =IF($F16<60,"x",$F16) -> x | T16: =IF($F16<65,"x",$F16) -> x | U16: =IF($F16<70,"x",$F16) -> x | V16: =IF($F16<75,"x",$F16) -> x | W16: =IF($F16<80,"x",$F16) -> x | X16: =IF($F16<85,"x",$F16) -> x | Y16: =IF($F16<90,"x",$F16) -> x | Z16: =IF($F16<95,"x",$F16) -> x | AA16: =IF($F16<100,"x",$F16) -> x
B18: =Berechnung!BD6 -> 5 | C18: =Berechnung!BF6 -> Baudynamik | F18: =Berechnung!BJ6 -> 10.00089089 | G18: % | H18: =IF($F18<5,"x",$F18) -> 10.00089089 | I18: =IF($F18<10,"x",$F18) -> 10.00089089 | J18: =IF($F18<15,"x",$F18) -> x | K18: =IF($F18<20,"x",$F18) -> x | L18: =IF($F18<25,"x",$F18) -> x | M18: =IF($F18<30,"x",$F18) -> x | N18: =IF($F18<35,"x",$F18) -> x | O18: =IF($F18<40,"x",$F18) -> x | P18: =IF($F18<45,"x",$F18) -> x | Q18: =IF($F18<50,"x",$F18) -> x | R18: =IF($F18<55,"x",$F18) -> x | S18: =IF($F18<60,"x",$F18) -> x | T18: =IF($F18<65,"x",$F18) -> x | U18: =IF($F18<70,"x",$F18) -> x | V18: =IF($F18<75,"x",$F18) -> x | W18: =IF($F18<80,"x",$F18) -> x | X18: =IF($F18<85,"x",$F18) -> x | Y18: =IF($F18<90,"x",$F18) -> x | Z18: =IF($F18<95,"x",$F18) -> x | AA18: =IF($F18<100,"x",$F18) -> x
B21: Die fünf Berufszweige mit der geringsten Übereinstimmung
B23: =Berechnung!BD38 -> 37 | C23: =Berechnung!BF38 -> Ausschreibung und Vergabe | F23: =Berechnung!BJ38 -> -22.77902281 | G23: % | H23: =IF($F23<5,"x",$F23) -> x | I23: =IF($F23<10,"x",$F23) -> x | J23: =IF($F23<15,"x",$F23) -> x | K23: =IF($F23<20,"x",$F23) -> x | L23: =IF($F23<25,"x",$F23) -> x | M23: =IF($F23<30,"x",$F23) -> x | N23: =IF($F23<35,"x",$F23) -> x | O23: =IF($F23<40,"x",$F23) -> x | P23: =IF($F23<45,"x",$F23) -> x | Q23: =IF($F23<50,"x",$F23) -> x | R23: =IF($F23<55,"x",$F23) -> x | S23: =IF($F23<60,"x",$F23) -> x | T23: =IF($F23<65,"x",$F23) -> x | U23: =IF($F23<70,"x",$F23) -> x | V23: =IF($F23<75,"x",$F23) -> x | W23: =IF($F23<80,"x",$F23) -> x | X23: =IF($F23<85,"x",$F23) -> x | Y23: =IF($F23<90,"x",$F23) -> x | Z23: =IF($F23<95,"x",$F23) -> x | AA23: =IF($F23<100,"x",$F23) -> x
B25: =Berechnung!BD39 -> 38 | C25: =Berechnung!BF39 -> Kostenplanung | F25: =Berechnung!BJ39 -> -23.53411854 | G25: % | H25: x | I25: x | J25: x | K25: x | L25: x | M25: x | N25: x | O25: x | P25: x | Q25: x | R25: x | S25: x | T25: x | U25: x | V25: x | W25: x | X25: x | Y25: x | Z25: x | AA25: x
B27: =Berechnung!BD40 -> 39 | C27: =Berechnung!BF40 -> Bauwirtschaft - Bauleitung (Hochbau) | F27: =Berechnung!BJ40 -> -23.93134922 | G27: % | H27: x | I27: x | J27: x | K27: x | L27: x | M27: x | N27: x | O27: x | P27: x | Q27: x | R27: x | S27: x | T27: x | U27: x | V27: x | W27: x | X27: x | Y27: x | Z27: x | AA27: x
B29: =Berechnung!BD41 -> 40 | C29: =Berechnung!BF41 -> Termin- und Kapazitätsplanung | F29: =Berechnung!BJ41 -> -25.15220311 | G29: % | H29: x | I29: x | J29: x | K29: x | L29: x | M29: x | N29: x | O29: x | P29: x | Q29: x | R29: x | S29: x | T29: x | U29: x | V29: x | W29: x | X29: x | Y29: x | Z29: x | AA29: x
B31: =Berechnung!BD42 -> 41 | C31: =Berechnung!BF42 -> Beleuchtungsplanung | F31: =Berechnung!BJ42 -> -27.75379402 | G31: % | H31: x | I31: x | J31: x | K31: x | L31: x | M31: x | N31: x | O31: x | P31: x | Q31: x | R31: x | S31: x | T31: x | U31: x | V31: x | W31: x | X31: x | Y31: x | Z31: x | AA31: x
B33: Vergleich meiner Einzelantworten
B35: mit | C35: Projektsteuerung
B37: Frage | C37: Thema | D37: von (1) | E37: bis (5) | F37: eigene | G37: V
B39: 1 | C39: Arbeitsplatz | D39: flexibel | E39: ortsfest | F39: =Berechnung!AZ2 -> 0 | G39: =HLOOKUP($C$35,Berechnung!$B$1:$AQ$19,2,FALSE) -> 2 | I39: 0 | J39: 5
B40: 2 | C40: Arbeitsort | D40: draußen | E40: temperiert | F40: =Berechnung!AZ3 -> 0 | G40: =HLOOKUP($C$35,Berechnung!$B$1:$AQ$19,3,FALSE) -> 3 | I40: 5 | J40: 0
B41: 3 | C41: Fremdmotivation | D41: ist leicht | E41: ist schwer | F41: =Berechnung!AZ4 -> 0 | G41: =HLOOKUP($C$35,Berechnung!$B$1:$AQ$19,4,FALSE) -> 2 | I41: 0 | J41: 5
B42: 4 | C42: Anweisungen | D42: selbst geben | E42: bekommen | F42: =Berechnung!AZ5 -> 0 | G42: =HLOOKUP($C$35,Berechnung!$B$1:$AQ$19,5,FALSE) -> 1 | I42: 5 | J42: 0
B43: 5 | C43: Arbeitsweise | D43: Teamarbeit | E43: Einzelarbeit | F43: =Berechnung!AZ6 -> 0 | G43: =HLOOKUP($C$35,Berechnung!$B$1:$AQ$19,6,FALSE) -> 1 | I43: 0 | J43: 5
B44: 6 | C44: Umsetzung | D44: Planung | E44: Ausführung | F44: =Berechnung!AZ8 -> 0 | G44: =HLOOKUP($C$35,Berechnung!$B$1:$AQ$19,8,FALSE) -> 5 | I44: 5 | J44: 0
B45: 7 | C45: Interesse | D45: technisch | E45: wirtschaftlich | F45: =Berechnung!AZ9 -> 0 | G45: =HLOOKUP($C$35,Berechnung!$B$1:$AQ$19,9,FALSE) -> 5 | I45: 0 | J45: 5
B46: 8 | C46: Bereich | D46: Tiefbau | E46: Hoch-/Ausbau | F46: =Berechnung!AZ10 -> 0 | G46: =HLOOKUP($C$35,Berechnung!$B$1:$AQ$19,10,FALSE) -> 3 | I46: 5 | J46: 0
B47: 9 | C47: Vorstellen | D47: im Kopf | E47: in der Hand | F47: =Berechnung!AZ11 -> 0 | G47: =HLOOKUP($C$35,Berechnung!$B$1:$AQ$19,11,FALSE) -> 3 | I47: 0 | J47: 5
B48: 10 | C48: Konzentration | D48: ein Vorhaben | E48: viele Vorhaben | F48: =Berechnung!AZ12 -> 0 | G48: =HLOOKUP($C$35,Berechnung!$B$1:$AQ$19,12,FALSE) -> 2 | I48: 5 | J48: 0
B49: 11 | C49: Arbeitszeit | D49: eher flexibel | E49: fest geregelt | F49: =Berechnung!AZ14 -> 0 | G49: =HLOOKUP($C$35,Berechnung!$B$1:$AQ$19,14,FALSE) -> 3 | I49: 0 | J49: 5
B50: 12 | C50: Analyse | D50: als Ganzes | E50: im Detail | F50: =Berechnung!AZ16 -> 0 | G50: =HLOOKUP($C$35,Berechnung!$B$1:$AQ$19,16,FALSE) -> 4 | I50: 5 | J50: 0
B51: 13 | C51: Lösungen | D51: vorgeplant | E51: spontan | F51: =Berechnung!AZ17 -> 0 | G51: =HLOOKUP($C$35,Berechnung!$B$1:$AQ$19,17,FALSE) -> 4 | I51: 0 | J51: 5
B52: 14 | C52: Veränderungen | D52: notwendig | E52: verbessern | F52: =Berechnung!AZ18 -> 0 | G52: =HLOOKUP($C$35,Berechnung!$B$1:$AQ$19,18,FALSE) -> 4 | I52: 5 | J52: 0
B53: 15 | C53: Konfliktlösung | D53: Kompromiss | E53: klare Position | F53: =Berechnung!AZ19 -> 0 | G53: =HLOOKUP($C$35,Berechnung!$B$1:$AQ$19,19,FALSE) -> 5 | I53: 0 | J53: 5

Sheet Gesamtauswertung
B8: =Berechnung!BD2 -> 1 | C8: =Berechnung!BF2 -> Geotechnik | F8: =Berechnung!BJ2 -> 27.52805334 | G8: % | H8: =IF($F8<5,"x",$F8) -> 27.52805334 | I8: =IF($F8<10,"x",$F8) -> 27.52805334 | J8: =IF($F8<15,"x",$F8) -> 27.52805334 | K8: =IF($F8<20,"x",$F8) -> 27.52805334 | L8: =IF($F8<25,"x",$F8) -> 27.52805334 | M8: =IF($F8<30,"x",$F8) -> x | N8: =IF($F8<35,"x",$F8) -> x | O8: =IF($F8<40,"x",$F8) -> x | P8: =IF($F8<45,"x",$F8) -> x | Q8: =IF($F8<50,"x",$F8) -> x | R8: =IF($F8<55,"x",$F8) -> x | S8: =IF($F8<60,"x",$F8) -> x | T8: =IF($F8<65,"x",$F8) -> x | U8: =IF($F8<70,"x",$F8) -> x | V8: =IF($F8<75,"x",$F8) -> x | W8: =IF($F8<80,"x",$F8) -> x | X8: =IF($F8<85,"x",$F8) -> x | Y8: =IF($F8<90,"x",$F8) -> x | Z8: =IF($F8<95,"x",$F8) -> x | AA8: =IF($F8<100,"x",$F8) -> x
B10: =Berechnung!BD3 -> 2 | C10: =Berechnung!BF3 -> Straßenbau | F10: =Berechnung!BJ3 -> 19.9730931 | G10: % | H10: =IF($F10<5,"x",$F10) -> 19.9730931 | I10: =IF($F10<10,"x",$F10) -> 19.9730931 | J10: =IF($F10<15,"x",$F10) -> 19.9730931 | K10: =IF($F10<20,"x",$F10) -> x | L10: =IF($F10<25,"x",$F10) -> x | M10: =IF($F10<30,"x",$F10) -> x | N10: =IF($F10<35,"x",$F10) -> x | O10: =IF($F10<40,"x",$F10) -> x | P10: =IF($F10<45,"x",$F10) -> x | Q10: =IF($F10<50,"x",$F10) -> x | R10: =IF($F10<55,"x",$F10) -> x | S10: =IF($F10<60,"x",$F10) -> x | T10: =IF($F10<65,"x",$F10) -> x | U10: =IF($F10<70,"x",$F10) -> x | V10: =IF($F10<75,"x",$F10) -> x | W10: =IF($F10<80,"x",$F10) -> x | X10: =IF($F10<85,"x",$F10) -> x | Y10: =IF($F10<90,"x",$F10) -> x | Z10: =IF($F10<95,"x",$F10) -> x | AA10: =IF($F10<100,"x",$F10) -> x
B12: =Berechnung!BD4 -> 3 | C12: =Berechnung!BF4 -> Wasserbau | F12: =Berechnung!BJ4 -> 13.77138536 | G12: % | H12: =IF($F12<5,"x",$F12) -> 13.77138536 | I12: =IF($F12<10,"x",$F12) -> 13.77138536 | J12: =IF($F12<15,"x",$F12) -> x | K12: =IF($F12<20,"x",$F12) -> x | L12: =IF($F12<25,"x",$F12) -> x | M12: =IF($F12<30,"x",$F12) -> x | N12: =IF($F12<35,"x",$F12) -> x | O12: =IF($F12<40,"x",$F12) -> x | P12: =IF($F12<45,"x",$F12) -> x | Q12: =IF($F12<50,"x",$F12) -> x | R12: =IF($F12<55,"x",$F12) -> x | S12: =IF($F12<60,"x",$F12) -> x | T12: =IF($F12<65,"x",$F12) -> x | U12: =IF($F12<70,"x",$F12) -> x | V12: =IF($F12<75,"x",$F12) -> x | W12: =IF($F12<80,"x",$F12) -> x | X12: =IF($F12<85,"x",$F12) -> x | Y12: =IF($F12<90,"x",$F12) -> x | Z12: =IF($F12<95,"x",$F12) -> x | AA12: =IF($F12<100,"x",$F12) -> x
B14: =Berechnung!BD5 -> 4 | C14: =Berechnung!BF5 -> Tunnelbau | F14: =Berechnung!BJ5 -> 13.12815415 | G14: % | H14: =IF($F14<5,"x",$F14) -> 13.12815415 | I14: =IF($F14<10,"x",$F14) -> 13.12815415 | J14: =IF($F14<15,"x",$F14) -> x | K14: =IF($F14<20,"x",$F14) -> x | L14: =IF($F14<25,"x",$F14) -> x | M14: =IF($F14<30,"x",$F14) -> x | N14: =IF($F14<35,"x",$F14) -> x | O14: =IF($F14<40,"x",$F14) -> x | P14: =IF($F14<45,"x",$F14) -> x | Q14: =IF($F14<50,"x",$F14) -> x | R14: =IF($F14<55,"x",$F14) -> x | S14: =IF($F14<60,"x",$F14) -> x | T14: =IF($F14<65,"x",$F14) -> x | U14: =IF($F14<70,"x",$F14) -> x | V14: =IF($F14<75,"x",$F14) -> x | W14: =IF($F14<80,"x",$F14) -> x | X14: =IF($F14<85,"x",$F14) -> x | Y14: =IF($F14<90,"x",$F14) -> x | Z14: =IF($F14<95,"x",$F14) -> x | AA14: =IF($F14<100,"x",$F14) -> x
B16: =Berechnung!BD6 -> 5 | C16: =Berechnung!BF6 -> Baudynamik | F16: =Berechnung!BJ6 -> 10.00089089 | G16: % | H16: =IF($F16<5,"x",$F16) -> 10.00089089 | I16: =IF($F16<10,"x",$F16) -> 10.00089089 | J16: =IF($F16<15,"x",$F16) -> x | K16: =IF($F16<20,"x",$F16) -> x | L16: =IF($F16<25,"x",$F16) -> x | M16: =IF($F16<30,"x",$F16) -> x | N16: =IF($F16<35,"x",$F16) -> x | O16: =IF($F16<40,"x",$F16) -> x | P16: =IF($F16<45,"x",$F16) -> x | Q16: =IF($F16<50,"x",$F16) -> x | R16: =IF($F16<55,"x",$F16) -> x | S16: =IF($F16<60,"x",$F16) -> x | T16: =IF($F16<65,"x",$F16) -> x | U16: =IF($F16<70,"x",$F16) -> x | V16: =IF($F16<75,"x",$F16) -> x | W16: =IF($F16<80,"x",$F16) -> x | X16: =IF($F16<85,"x",$F16) -> x | Y16: =IF($F16<90,"x",$F16) -> x | Z16: =IF($F16<95,"x",$F16) -> x | AA16: =IF($F16<100,"x",$F16) -> x
B18: =Berechnung!BD7 -> 6 | C18: =Berechnung!BF7 -> Brückenbau | F18: =Berechnung!BJ7 -> 8.792488483 | G18: % | H18: =IF($F18<5,"x",$F18) -> 8.792488483 | I18: =IF($F18<10,"x",$F18) -> x | J18: =IF($F18<15,"x",$F18) -> x | K18: =IF($F18<20,"x",$F18) -> x | L18: =IF($F18<25,"x",$F18) -> x | M18: =IF($F18<30,"x",$F18) -> x | N18: =IF($F18<35,"x",$F18) -> x | O18: =IF($F18<40,"x",$F18) -> x | P18: =IF($F18<45,"x",$F18) -> x | Q18: =IF($F18<50,"x",$F18) -> x | R18: =IF($F18<55,"x",$F18) -> x | S18: =IF($F18<60,"x",$F18) -> x | T18: =IF($F18<65,"x",$F18) -> x | U18: =IF($F18<70,"x",$F18) -> x | V18: =IF($F18<75,"x",$F18) -> x | W18: =IF($F18<80,"x",$F18) -> x | X18: =IF($F18<85,"x",$F18) -> x | Y18: =IF($F18<90,"x",$F18) -> x | Z18: =IF($F18<95,"x",$F18) -> x | AA18: =IF($F18<100,"x",$F18) -> x
B20: =Berechnung!BD8 -> 7 | C20: =Berechnung!BF8 -> Gleis- und Bahnbau | F20: =Berechnung!BJ8 -> 8.632590638 | G20: % | H20: =IF($F20<5,"x",$F20) -> 8.632590638 | I20: =IF($F20<10,"x",$F20) -> x | J20: =IF($F20<15,"x",$F20) -> x | K20: =IF($F20<20,"x",$F20) -> x | L20: =IF($F20<25,"x",$F20) -> x | M20: =IF($F20<30,"x",$F20) -> x | N20: =IF($F20<35,"x",$F20) -> x | O20: =IF($F20<40,"x",$F20) -> x | P20: =IF($F20<45,"x",$F20) -> x | Q20: =IF($F20<50,"x",$F20) -> x | R20: =IF($F20<55,"x",$F20) -> x | S20: =IF($F20<60,"x",$F20) -> x | T20: =IF($F20<65,"x",$F20) -> x | U20: =IF($F20<70,"x",$F20) -> x | V20: =IF($F20<75,"x",$F20) -> x | W20: =IF($F20<80,"x",$F20) -> x | X20: =IF($F20<85,"x",$F20) -> x | Y20: =IF($F20<90,"x",$F20) -> x | Z20: =IF($F20<95,"x",$F20) -> x | AA20: =IF($F20<100,"x",$F20) -> x
B22: =Berechnung!BD9 -> 8 | C22: =Berechnung!BF9 -> Statik und Prüfstatik | F22: =Berechnung!BJ9 -> 6.49487262 | G22: % | H22: =IF($F22<5,"x",$F22) -> 6.49487262 | I22: =IF($F22<10,"x",$F22) -> x | J22: =IF($F22<15,"x",$F22) -> x | K22: =IF($F22<20,"x",$F22) -> x | L22: =IF($F22<25,"x",$F22) -> x | M22: =IF($F22<30,"x",$F22) -> x | N22: =IF($F22<35,"x",$F22) -> x | O22: =IF($F22<40,"x",$F22) -> x | P22: =IF($F22<45,"x",$F22) -> x | Q22: =IF($F22<50,"x",$F22) -> x | R22: =IF($F22<55,"x",$F22) -> x | S22: =IF($F22<60,"x",$F22) -> x | T22: =IF($F22<65,"x",$F22) -> x | U22: =IF($F22<70,"x",$F22) -> x | V22: =IF($F22<75,"x",$F22) -> x | W22: =IF($F22<80,"x",$F22) -> x | X22: =IF($F22<85,"x",$F22) -> x | Y22: =IF($F22<90,"x",$F22) -> x | Z22: =IF($F22<95,"x",$F22) -> x | AA22: =IF($F22<100,"x",$F22) -> x
B24: =Berechnung!BD10 -> 9 | C24: =Berechnung!BF10 -> Prüfstatiker | F24: =Berechnung!BJ10 -> 6.359938065 | G24: % | H24: =IF($F24<5,"x",$F24) -> 6.359938065 | I24: =IF($F24<10,"x",$F24) -> x | J24: =IF($F24<15,"x",$F24) -> x | K24: =IF($F24<20,"x",$F24) -> x | L24: =IF($F24<25,"x",$F24) -> x | M24: =IF($F24<30,"x",$F24) -> x | N24: =IF($F24<35,"x",$F24) -> x | O24: =IF($F24<40,"x",$F24) -> x | P24: =IF($F24<45,"x",$F24) -> x | Q24: =IF($F24<50,"x",$F24) -> x | R24: =IF($F24<55,"x",$F24) -> x | S24: =IF($F24<60,"x",$F24) -> x | T24: =IF($F24<65,"x",$F24) -> x | U24: =IF($F24<70,"x",$F24) -> x | V24: =IF($F24<75,"x",$F24) -> x | W24: =IF($F24<80,"x",$F24) -> x | X24: =IF($F24<85,"x",$F24) -> x | Y24: =IF($F24<90,"x",$F24) -> x | Z24: =IF($F24<95,"x",$F24) -> x | AA24: =IF($F24<100,"x",$F24) -> x
B26: =Berechnung!BD11 -> 10 | C26: =Berechnung!BF11 -> Stadtplanung | F26: =Berechnung!BJ11 -> 3.960157445 | G26: % | H26: =IF($F26<5,"x",$F26) -> x | I26: =IF($F26<10,"x",$F26) -> x | J26: =IF($F26<15,"x",$F26) -> x | K26: =IF($F26<20,"x",$F26) -> x | L26: =IF($F26<25,"x",$F26) -> x | M26: =IF($F26<30,"x",$F26) -> x | N26: =IF($F26<35,"x",$F26) -> x | O26: =IF($F26<40,"x",$F26) -> x | P26: =IF($F26<45,"x",$F26) -> x | Q26: =IF($F26<50,"x",$F26) -> x | R26: =IF($F26<55,"x",$F26) -> x | S26: =IF($F26<60,"x",$F26) -> x | T26: =IF($F26<65,"x",$F26) -> x | U26: =IF($F26<70,"x",$F26) -> x | V26: =IF($F26<75,"x",$F26) -> x | W26: =IF($F26<80,"x",$F26) -> x | X26: =IF($F26<85,"x",$F26) -> x | Y26: =IF($F26<90,"x",$F26) -> x | Z26: =IF($F26<95,"x",$F26) -> x | AA26: =IF($F26<100,"x",$F26) -> x
B28: =Berechnung!BD12 -> 11 | C28: =Berechnung!BF12 -> Bauüberwachung | F28: =Berechnung!BJ12 -> 3.40542185 | G28: % | H28: =IF($F28<5,"x",$F28) -> x | I28: =IF($F28<10,"x",$F28) -> x | J28: =IF($F28<15,"x",$F28) -> x | K28: =IF($F28<20,"x",$F28) -> x | L28: =IF($F28<25,"x",$F28) -> x | M28: =IF($F28<30,"x",$F28) -> x | N28: =IF($F28<35,"x",$F28) -> x | O28: =IF($F28<40,"x",$F28) -> x | P28: =IF($F28<45,"x",$F28) -> x | Q28: =IF($F28<50,"x",$F28) -> x | R28: =IF($F28<55,"x",$F28) -> x | S28: =IF($F28<60,"x",$F28) -> x | T28: =IF($F28<65,"x",$F28) -> x | U28: =IF($F28<70,"x",$F28) -> x | V28: =IF($F28<75,"x",$F28) -> x | W28: =IF($F28<80,"x",$F28) -> x | X28: =IF($F28<85,"x",$F28) -> x | Y28: =IF($F28<90,"x",$F28) -> x | Z28: =IF($F28<95,"x",$F28) -> x | AA28: =IF($F28<100,"x",$F28) -> x
B30: =Berechnung!BD13 -> 12 | C30: =Berechnung!BF13 -> Allg. Genehmigungsplanung | F30: =Berechnung!BJ13 -> 1.263331968 | G30: % | H30: x | I30: x | J30: x | K30: x | L30: x | M30: x | N30: x | O30: x | P30: x | Q30: x | R30: x | S30: x | T30: x | U30: x | V30: x | W30: x | X30: x | Y30: x | Z30: x | AA30: x
B32: =Berechnung!BD14 -> 13 | C32: =Berechnung!BF14 -> Bauwirtschaft - Bauleitung (Tiefbau) | F32: =Berechnung!BJ14 -> -2.302998991 | G32: % | H32: x | I32: x | J32: x | K32: x | L32: x | M32: x | N32: x | O32: x | P32: x | Q32: x | R32: x | S32: x | T32: x | U32: x | V32: x | W32: x | X32: x | Y32: x | Z32: x | AA32: x
B34: =Berechnung!BD15 -> 14 | C34: =Berechnung!BF15 -> Stahlbau | F34: =Berechnung!BJ15 -> -2.803015907 | G34: % | H34: x | I34: x | J34: x | K34: x | L34: x | M34: x | N34: x | O34: x | P34: x | Q34: x | R34: x | S34: x | T34: x | U34: x | V34: x | W34: x | X34: x | Y34: x | Z34: x | AA34: x
B36: =Berechnung!BD16 -> 15 | C36: =Berechnung!BF16 -> Bauindustrie - Techn. Außendienst | F36: =Berechnung!BJ16 -> -3.136232787 | G36: % | H36: x | I36: x | J36: x | K36: x | L36: x | M36: x | N36: x | O36: x | P36: x | Q36: x | R36: x | S36: x | T36: x | U36: x | V36: x | W36: x | X36: x | Y36: x | Z36: x | AA36: x
B38: =Berechnung!BD17 -> 16 | C38: =Berechnung!BF17 -> Projektentwicklung | F38: =Berechnung!BJ17 -> -3.981302408 | G38: % | H38: x | I38: x | J38: x | K38: x | L38: x | M38: x | N38: x | O38: x | P38: x | Q38: x | R38: x | S38: x | T38: x | U38: x | V38: x | W38: x | X38: x | Y38: x | Z38: x | AA38: x
B40: =Berechnung!BD18 -> 17 | C40: =Berechnung!BF18 -> Stahlbetonbau | F40: =Berechnung!BJ18 -> -4.736511922 | G40: % | H40: x | I40: x | J40: x | K40: x | L40: x | M40: x | N40: x | O40: x | P40: x | Q40: x | R40: x | S40: x | T40: x | U40: x | V40: x | W40: x | X40: x | Y40: x | Z40: x | AA40: x
B42: =Berechnung!BD19 -> 18 | C42: =Berechnung!BF19 -> Spannbetonbau | F42: =Berechnung!BJ19 -> -5.347417099 | G42: % | H42: x | I42: x | J42: x | K42: x | L42: x | M42: x | N42: x | O42: x | P42: x | Q42: x | R42: x | S42: x | T42: x | U42: x | V42: x | W42: x | X42: x | Y42: x | Z42: x | AA42: x
B44: =Berechnung!BD20 -> 19 | C44: =Berechnung!BF20 -> Vermessung | F44: =Berechnung!BJ20 -> -6.907097608 | G44: % | H44: x | I44: x | J44: x | K44: x | L44: x | M44: x | N44: x | O44: x | P44: x | Q44: x | R44: x | S44: x | T44: x | U44: x | V44: x | W44: x | X44: x | Y44: x | Z44: x | AA44: x
B46: =Berechnung!BD21 -> 20 | C46: =Berechnung!BF21 -> Brandschutzplanung | F46: =Berechnung!BJ21 -> -7.495242251 | G46: % | H46: x | I46: x | J46: x | K46: x | L46: x | M46: x | N46: x | O46: x | P46: x | Q46: x | R46: x | S46: x | T46: x | U46: x | V46: x | W46: x | X46: x | Y46: x | Z46: x | AA46: x
B48: =Berechnung!BD22 -> 21 | C48: =Berechnung!BF22 -> Bauphysikalische Planung | F48: =Berechnung!BJ22 -> -8.516604373 | G48: % | H48: x | I48: x | J48: x | K48: x | L48: x | M48: x | N48: x | O48: x | P48: x | Q48: x | R48: x | S48: x | T48: x | U48: x | V48: x | W48: x | X48: x | Y48: x | Z48: x | AA48: x
B50: =Berechnung!BD23 -> 22 | C50: =Berechnung!BF23 -> Glas-/Aluminiumbau | F50: =Berechnung!BJ23 -> -9.018807588 | G50: % | H50: x | I50: x | J50: x | K50: x | L50: x | M50: x | N50: x | O50: x | P50: x | Q50: x | R50: x | S50: x | T50: x | U50: x | V50: x | W50: x | X50: x | Y50: x | Z50: x | AA50: x
B52: =Berechnung!BD24 -> 23 | C52: =Berechnung!BF24 -> Wissenschaftliche Assistenz | F52: =Berechnung!BJ24 -> -10.67739093 | G52: % | H52: x | I52: x | J52: x | K52: x | L52: x | M52: x | N52: x | O52: x | P52: x | Q52: x | R52: x | S52: x | T52: x | U52: x | V52: x | W52: x | X52: x | Y52: x | Z52: x | AA52: x
B54: =Berechnung!BD25 -> 24 | C54: =Berechnung!BF25 -> Bauindustrie - Herstellung | F54: =Berechnung!BJ25 -> -11.06326969 | G54: % | H54: x | I54: x | J54: x | K54: x | L54: x | M54: x | N54: x | O54: x | P54: x | Q54: x | R54: x | S54: x | T54: x | U54: x | V54: x | W54: x | X54: x | Y54: x | Z54: x | AA54: x
B56: =Berechnung!BD26 -> 25 | C56: =Berechnung!BF26 -> Sicherheits- und Gesundheitskoordination (SiGeKo) | F56: =Berechnung!BJ26 -> -12.69222975 | G56: % | H56: x | I56: x | J56: x | K56: x | L56: x | M56: x | N56: x | O56: x | P56: x | Q56: x | R56: x | S56: x | T56: x | U56: x | V56: x | W56: x | X56: x | Y56: x | Z56: x | AA56: x
B58: =Berechnung!BD27 -> 26 | C58: =Berechnung!BF27 -> Denkmalpflege | F58: =Berechnung!BJ27 -> -12.82016661 | G58: % | H58: x | I58: x | J58: x | K58: x | L58: x | M58: x | N58: x | O58: x | P58: x | Q58: x | R58: x | S58: x | T58: x | U58: x | V58: x | W58: x | X58: x | Y58: x | Z58: x | AA58: x
B60: =Berechnung!BD28 -> 27 | C60: =Berechnung!BF28 -> Projektsteuerung | F60: =Berechnung!BJ28 -> -12.86766004 | G60: % | H60: x | I60: x | J60: x | K60: x | L60: x | M60: x | N60: x | O60: x | P60: x | Q60: x | R60: x | S60: x | T60: x | U60: x | V60: x | W60: x | X60: x | Y60: x | Z60: x | AA60: x
B62: =Berechnung!BD29 -> 28 | C62: =Berechnung!BF29 -> Sachverständigenwesen | F62: =Berechnung!BJ29 -> -13.73656789 | G62: % | H62: x | I62: x | J62: x | K62: x | L62: x | M62: x | N62: x | O62: x | P62: x | Q62: x | R62: x | S62: x | T62: x | U62: x | V62: x | W62: x | X62: x | Y62: x | Z62: x | AA62: x
B64: =Berechnung!BD30 -> 29 | C64: =Berechnung!BF30 -> Bauindustrie - Forschung + Entwicklung | F64: =Berechnung!BJ30 -> -14.49614762 | G64: % | H64: x | I64: x | J64: x | K64: x | L64: x | M64: x | N64: x | O64: x | P64: x | Q64: x | R64: x | S64: x | T64: x | U64: x | V64: x | W64: x | X64: x | Y64: x | Z64: x | AA64: x
B66: =Berechnung!BD31 -> 30 | C66: =Berechnung!BF31 -> Holzbau | F66: =Berechnung!BJ31 -> -14.82162067 | G66: % | H66: x | I66: x | J66: x | K66: x | L66: x | M66: x | N66: x | O66: x | P66: x | Q66: x | R66: x | S66: x | T66: x | U66: x | V66: x | W66: x | X66: x | Y66: x | Z66: x | AA66: x
B68: =Berechnung!BD32 -> 31 | C68: =Berechnung!BF32 -> Energieberatung | F68: =Berechnung!BJ32 -> -15.19409632 | G68: % | H68: x | I68: x | J68: x | K68: x | L68: x | M68: x | N68: x | O68: x | P68: x | Q68: x | R68: x | S68: x | T68: x | U68: x | V68: x | W68: x | X68: x | Y68: x | Z68: x | AA68: x
B70: =Berechnung!BD33 -> 32 | C70: =Berechnung!BF33 -> Lehre in der Berufsbildung | F70: =Berechnung!BJ33 -> -15.29232514 | G70: % | H70: x | I70: x | J70: x | K70: x | L70: x | M70: x | N70: x | O70: x | P70: x | Q70: x | R70: x | S70: x | T70: x | U70: x | V70: x | W70: x | X70: x | Y70: x | Z70: x | AA70: x
B72: =Berechnung!BD34 -> 33 | C72: =Berechnung!BF34 -> Infrastrukturmanagement | F72: =Berechnung!BJ34 -> -16.7137362 | G72: % | H72: x | I72: x | J72: x | K72: x | L72: x | M72: x | N72: x | O72: x | P72: x | Q72: x | R72: x | S72: x | T72: x | U72: x | V72: x | W72: x | X72: x | Y72: x | Z72: x | AA72: x
B74: =Berechnung!BD35 -> 34 | C74: =Berechnung!BF35 -> Sachbearbeitung Bauordnungsamt | F74: =Berechnung!BJ35 -> -17.62602839 | G74: % | H74: x | I74: x | J74: x | K74: x | L74: x | M74: x | N74: x | O74: x | P74: x | Q74: x | R74: x | S74: x | T74: x | U74: x | V74: x | W74: x | X74: x | Y74: x | Z74: x | AA74: x
B76: =Berechnung!BD36 -> 35 | C76: =Berechnung!BF36 -> Technische Gebäudeausrüstung (TGA) | F76: =Berechnung!BJ36 -> -18.23821079 | G76: % | H76: x | I76: x | J76: x | K76: x | L76: x | M76: x | N76: x | O76: x | P76: x | Q76: x | R76: x | S76: x | T76: x | U76: x | V76: x | W76: x | X76: x | Y76: x | Z76: x | AA76: x
B78: =Berechnung!BD37 -> 36 | C78: =Berechnung!BF37 -> Bauwirtschaft - Kalkulation | F78: =Berechnung!BJ37 -> -20.4251753 | G78: % | H78: x | I78: x | J78: x | K78: x | L78: x | M78: x | N78: x | O78: x | P78: x | Q78: x | R78: x | S78: x | T78: x | U78: x | V78: x | W78: x | X78: x | Y78: x | Z78: x | AA78: x
B80: =Berechnung!BD38 -> 37 | C80: =Berechnung!BF38 -> Ausschreibung und Vergabe | F80: =Berechnung!BJ38 -> -22.77902281 | G80: % | H80: x | I80: x | J80: x | K80: x | L80: x | M80: x | N80: x | O80: x | P80: x | Q80: x | R80: x | S80: x | T80: x | U80: x | V80: x | W80: x | X80: x | Y80: x | Z80: x | AA80: x
B82: =Berechnung!BD39 -> 38 | C82: =Berechnung!BF39 -> Kostenplanung | F82: =Berechnung!BJ39 -> -23.53411854 | G82: % | H82: x | I82: x | J82: x | K82: x | L82: x | M82: x | N82: x | O82: x | P82: x | Q82: x | R82: x | S82: x | T82: x | U82: x | V82: x | W82: x | X82: x | Y82: x | Z82: x | AA82: x
B84: =Berechnung!BD40 -> 39 | C84: =Berechnung!BF40 -> Bauwirtschaft - Bauleitung (Hochbau) | F84: =Berechnung!BJ40 -> -23.93134922 | G84: % | H84: x | I84: x | J84: x | K84: x | L84: x | M84: x | N84: x | O84: x | P84: x | Q84: x | R84: x | S84: x | T84: x | U84: x | V84: x | W84: x | X84: x | Y84: x | Z84: x | AA84: x
B86: =Berechnung!BD41 -> 40 | C86: =Berechnung!BF41 -> Termin- und Kapazitätsplanung | F86: =Berechnung!BJ41 -> -25.15220311 | G86: % | H86: x | I86: x | J86: x | K86: x | L86: x | M86: x | N86: x | O86: x | P86: x | Q86: x | R86: x | S86: x | T86: x | U86: x | V86: x | W86: x | X86: x | Y86: x | Z86: x | AA86: x
B88: =Berechnung!BD42 -> 41 | C88: =Berechnung!BF42 -> Beleuchtungsplanung | F88: =Berechnung!BJ42 -> -27.75379402 | G88: % | H88: x | I88: x | J88: x | K88: x | L88: x | M88: x | N88: x | O88: x | P88: x | Q88: x | R88: x | S88: x | T88: x | U88: x | V88: x | W88: x | X88: x | Y88: x | Z88: x | AA88: x

Sheet Modulrelevanz
B2: Berufsbild | C2: Baukonstruktion / CAD (B 101, B 201) | D2: Baustoffkunde / Bauchemie (B 102) | E2: Technische Mechanik / Baustatik (B 103, B 203) | F2: Mathematik (B 104, B 205) | G2: Bauphysik (B 105, B 206) | H2: Vermessungswesen (B 202) | I2: Baubetrieb / Bauwirtschaft 1 (B 203) | J2: Massivbau/Stahlbetonbau (B 301, B 401, B 605) | K2: Holzbau (B 302, B 402) | L2: Wasserbau / Wasserwirtschaft (B 303, B 403) | M2: Baubetrieb / Bauwirtschaft 2-4 (B 304, 404, 704) | N2: Baustatik / Informatik (FEM) (B 305, B 405) | O2: Ingenieurgeologie und Bodenmechanik (B 306) | P2: Stahlbau (B 307, B 407) | Q2: Grundbau (B 406) | R2: Verkehrsbau (B 601, B 701) | S2: Wasserbau und Geotechnik (B 602, B 702) | T2: Brandschutzbemessung (B 606) | U2: Technische Gebäudeausrüstung (B 607) | V2: Bausanierung (B 705)
B3: Ausschreibung und Vergabe
B4: Bauleitung
B5: Kalkulation
B6: Baudynamik
B7: Bauindustrie - Forschung + Entwicklung
B8: Bauindustrie - Herstellung
B9: Bauindustrie - Techn. Außendienst
B10: Bauphysikalische Planung
B11: Bauüberwachung
B12: Beleuchtungsplanung
B13: Brandschutzplanung (A+B)
B14: Brückenbau
B15: Denkmalpflege
B16: Energieberatung
B17: Genehmigungsplanung
B18: Geotechnik
B19: Glas-/Aluminiumbau
B20: Gleis- und Bahnbau
B21: Holzbau
B22: Infrastrukturmanagement
B23: Kostenplanung
B24: Lehre in der Weiterbildung
B25: Projektentwicklung
B26: Projektsteuerung und -management
B27: Sachbearbeitung im Bauordnungsamt
B28: Sachverständigenwesen
B29: Sicherheits- und Gesundheitskoordination
B30: Softwareentwicklung im Baubereich
B31: Spannbetonbau
B32: Stadtplanung
B33: Stahlbau
B34: Statik und Prüfstatik
B35: Technische Gebäudeausrüstung (TGA)
B36: Termin- und Kapazitätsplanung
B37: Tunnelbau
B38: Vermessung
B39: Wasserbau
B40: Wissenschaftliche Assistenz
B42: Legende | D42: sehr berufsrelevant | K42: berufsrelevant | Q42: bedingt berufsrelevant
Y57: Praxissemester, Wahlpflichtbereich und Bachelorarbeit sind in jedem Fall sehr relevant
Y64: Alle Fächer | AD64: Zusammenfassung
Y65: B 101 | Z65: Baukonstruktion / CAD 1 | AD65: B 101, B 201 | AE65: Baukonstruktion / CAD | AI65: Baukonstruktion / CAD (B 101, B 201)
Y66: B 102 | Z66: Baustoffkunde / Bauchemie | AD66: B 102 | AE66: Baustoffkunde / Bauchemie | AI66: Baustoffkunde / Bauchemie (B 102)
Y67: B 103 | Z67: Technische Mechanik / Baustatik 1 | AD67: B 103, B 203 | AE67: Technische Mechanik / Baustatik | AI67: Technische Mechanik / Baustatik (B 103, B 203)
Y68: B 104 | Z68: Mathematik 1 | AD68: B 104, B 205 | AE68: Mathematik | AI68: Mathematik (B 104, B 205)
Y69: B 105 | Z69: Bauphysik 1 | AD69: B 105, B 206 | AE69: Bauphysik | AI69: Bauphysik (B 105, B 206)
AD70: B 202 | AE70: Vermessungswesen | AI70: Vermessungswesen (B 202)
Y71: B 201 | Z71: Baukonstruktion / CAD 2 | AD71: B 203 | AE71: Baubetrieb / Bauwirtschaft 1 | AI71: Baubetrieb / Bauwirtschaft 1 (B 203)
Y72: B 202 | Z72: Vermessungswesen
Y73: B 203 | Z73: Baubetrieb / Bauwirtschaft 1 | AI73: Massivbau/Stahlbetonbau (B 301, B 401, B 605)
Y74: B 204 | Z74: Technische Mechanik / Baustatik 2 | AD74: B 301, B 401, B 605 | AE74: Massivbau | AI74: Holzbau (B 302, B 402)
Y75: B 205 | Z75: Mathematik 2 | AD75: B 302, B 402 | AE75: Holzbau | AI75: Wasserbau / Wasserwirtschaft (B 303, B 403)
Y76: B 206 | Z76: Bauphysik 2 | AD76: B 303, B 403 | AE76: Wasserbau / Wasserwirtschaft | AI76: Baubetrieb / Bauwirtschaft 2-4 (B 304, 404, 704)
Y77: B 301 | Z77: Massivbau 1 | AD77: B 304, 404, 704 | AE77: Baubetrieb / Bauwirtschaft 2+4 | AI77: Baustatik / Informatik (FEM) (B 305, B 405)
Y78: B 302, B 402 | Z78: Holzbau | AD78: B 305, B 405 | AE78: Baustatik / Informatik (FEM) | AI78: Ingenieurgeologie und Bodenmechanik (B 306)
Y79: B 303, B 403 | Z79: Wasserbau / Wasserwirtschaft | AI79: Stahlbau (B 307, B 407)
AD80: B 306 | AE80: Ingenieurgeologie und Bodenmechanik
Y81: B 304 | Z81: Baubetrieb / Bauwirtschaft 2 | AD81: B 307, B 407 | AE81: Stahlbau | AI81: Grundbau (B 406)
Y82: B 305 | Z82: Baustatik / Informatik (FEM) 1 | AI82: Verkehrsbau (B 601, B 701)
Y83: B 306 | Z83: Ingenieurgeologie und Bodenmechanik | AI83: Wasserbau und Geotechnik (B 602, B 702)
Y84: B 307 | Z84: Stahlbau 1 | AD84: B 406 | AE84: Grundbau | AI84: Projektstudium (B 604)
Y85: B 401 | Z85: Massivbau 2 | AI85: Brandschutzbemessung (B 606)
Y86: B 404 | Z86: Baubetrieb / Bauwirtschaft 3 | AD86: B 601, B 701 | AE86: Verkehrsbau | AI86: Technische Gebäudeausrüstung (B 607)
Y87: B 405 | Z87: Baustatik / Informatik (FEM) 2 | AD87: B 602, B 702 | AE87: Wasserbau und Geotechnik | AI87: Bausanierung (B 705)
Y88: B 406 | Z88: Grundbau
Y89: B 407 | Z89: Stahlbau 2 | AD89: B 604 | AE89: Projektstudium
Y91: B 501 | Z91: Praxissemester | AD91: B 606 | AE91: Brandschutzbemessung
Y92: B 601 | Z92: Verkehrsbau 1 | AD92: B 607 | AE92: Technische Gebäudeausrüstung
Y93: B 602, B 702 | Z93: Wasserbau und Geotechnik
Y94: B 603, B 703 | Z94: Wahlpflicht | AD94: B 705 | AE94: Bausanierung
Y95: B 604 | Z95: Projektstudium
Y96: B 605 | Z96: Massivbau 3
Y97: B 606 | Z97: Brandschutzbemessung
Y98: B 607 | Z98: Technische Gebäudeausrüstung
Y99: B 701 | Z99: Verkehrsbau 2
Y100: B 704 | Z100: Baubetrieb / Bauwirtschaft 4
Y101: B 705 | Z101: Bausanierung
